Department Family,Entity,Date Paid,Expense Type,Expense Area,Supplier,Transaction Number,Amount (�),Supplier VAT Registration Number
BEIS,Met Office,2022-03-02,11 SERVICES,TECHNOLOGY AND CIO,AMAZON WEB SERVICES INC.,10545,2747.63,N/A
BEIS,Met Office,2022-03-02,11 SERVICES,TECHNOLOGY AND CIO,AMAZON WEB SERVICES INC.,10546,156885.13,N/A
BEIS,Met Office,2022-03-09,11 SERVICES,TECHNOLOGY AND CIO,AMAZON WEB SERVICES INC.,10548,15190.16,N/A
BEIS,Met Office,2022-03-09,11 SERVICES,PROGRAMMES,"K F LEWIN CONSULTING, LLC",10549,2473.62,-
BEIS,Met Office,2022-03-02,11 SERVICES,SERVICES,METOCEAN TELEMATICS LTD,10550,318.75,-
BEIS,Met Office,2022-03-09,11 SERVICES,PROGRAMMES,UCAR INCOMING PAYMENTS,10558,10031.06,-
BEIS,Met Office,2022-03-16,11 SERVICES,SERVICES,NSSL GLOBAL LTD,10560,51.35,725151948
BEIS,Met Office,2022-03-16,11 SERVICES,SERVICES,NSSL GLOBAL LTD,10561,66.02,725151948
BEIS,Met Office,2022-03-23,11 SERVICES,PROGRAMMES,REGENTS OF THE UNIVERSITY OF COLORADO,10563,51713.02,-
BEIS,Met Office,2022-03-02,11 SERVICES,MARKETS,MANSOUR ALMAZROUI,10564,20927.51,-
BEIS,Met Office,2022-03-02,12 INTERNATIONAL,MARKETS,REDACTED PERSONAL DATA,10566,2784.11,-
BEIS,Met Office,2022-03-23,08 SOFTWARE LICENCES,MARKETS,"INTELLOVATIONS, LLC",10567,1532.19,-
BEIS,Met Office,2022-03-30,11 SERVICES,PROGRAMMES,"K F LEWIN CONSULTING, LLC",10572,4406.61,-
BEIS,Met Office,2022-03-30,11 SERVICES,TECHNOLOGY AND CIO,AMAZON WEB SERVICES INC.,10573,103295.83,N/A
BEIS,Met Office,2022-03-30,11 SERVICES,TECHNOLOGY AND CIO,AMAZON WEB SERVICES INC.,10573,52769.09,N/A
BEIS,Met Office,2022-03-30,11 SERVICES,TECHNOLOGY AND CIO,AMAZON WEB SERVICES INC.,10574,1221.78,N/A
BEIS,Met Office,2022-03-30,11 SERVICES,SERVICES,METOCEAN TELEMATICS LTD,10576,311.48,-
BEIS,Met Office,2022-03-16,11 SERVICES,MARKETS,"BASILIO SOZINHO CUBULA SERVI�OS, E.I.",10582,4683.51,N/A
BEIS,Met Office,2022-03-23,12 INTERNATIONAL,MARKETS,SPREP,10583,61371.77,-
BEIS,Met Office,2022-03-30,12 INTERNATIONAL,MARKETS,REDACTED PERSONAL DATA,10593,2713.75,-
BEIS,Met Office,2022-03-02,13 MISCELLANEOUS,CHIEF FINANCIAL OFFICER,DEMSTAR BUSINESS SOLUTIONS LTD,21495,66.92,10156145J
BEIS,Met Office,2022-03-23,11 SERVICES,SCIENCE,UKRI,22055,-39030.21,GB287461957
BEIS,Met Office,2022-03-02,11 SERVICES,MARKETS,CONSULTEC,23257,4343.53,400005915
BEIS,Met Office,2022-03-02,11 SERVICES,MARKETS,CONSULTEC,23258,173.74,400005915
BEIS,Met Office,2022-03-09,11 SERVICES,MARKETS,Eumetsat,23517,6649.08,VE
BEIS,Met Office,2022-03-09,11 SERVICES,MARKETS,Eumetsat,23518,6649.08,VE
BEIS,Met Office,2022-03-30,08 SOFTWARE LICENCES,MARKETS,"IBL SOFTWARE ENGINEERING, SPOL S.R.O.",23534,91443.96,SK2020241883
BEIS,Met Office,2022-03-30,08 SOFTWARE LICENCES,MARKETS,"IBL SOFTWARE ENGINEERING, SPOL S.R.O.",23534,24755.36,SK2020241883
BEIS,Met Office,2022-03-09,11 SERVICES,SCIENCE,REDACTED PERSONAL DATA,23536,4155.68,N/A
BEIS,Met Office,2022-03-09,11 SERVICES,SERVICES,"EUTELSAT MADERIA, UNIPESSOAL LDA",23537,2883.07,PT511283733
BEIS,Met Office,2022-03-09,13 MISCELLANEOUS,CHIEF FINANCIAL OFFICER,DEMSTAR BUSINESS SOLUTIONS LTD,23538,105.62,10156145J
BEIS,Met Office,2022-03-09,12 INTERNATIONAL,SERVICES,EURO-ARGO ERIC,23542,25350.62,723/2009
BEIS,Met Office,2022-03-09,10 EQUIPMENT MAINTENANCE,SERVICES,RAYMETRICS S.A. (GREEK ACCOUNT),23549,591.51,EL999641589
BEIS,Met Office,2022-03-09,12 INTERNATIONAL,SCIENCE,EUROGOOS AISBL,23552,10140.25,0521.723.012
BEIS,Met Office,2022-03-09,11 SERVICES,SERVICES,ROYAL METEOROLOGICAL INSTITUTE OF BELGIUM,23554,25392.93,BE0349294822
BEIS,Met Office,2022-03-16,11 SERVICES,SCIENCE,FCIENCIAS:ID,23561,29954.56,514187808
BEIS,Met Office,2022-03-02,11 SERVICES,CHIEF FINANCIAL OFFICER,DBS FINANCE RECEIPTS CTS,23566,162.68,888805068
BEIS,Met Office,2022-03-02,11 SERVICES,MARKETS,"EUTELSAT MADERIA, UNIPESSOAL LDA",23571,433.37,PT511283733
BEIS,Met Office,2022-03-02,11 SERVICES,SERVICES,"EUTELSAT MADERIA, UNIPESSOAL LDA",23571,1733.49,PT511283733
BEIS,Met Office,2022-03-09,11 SERVICES,MARKETS,"EUTELSAT MADERIA, UNIPESSOAL LDA",23573,433.37,PT511283733
BEIS,Met Office,2022-03-09,11 SERVICES,SERVICES,"EUTELSAT MADERIA, UNIPESSOAL LDA",23573,1733.49,PT511283733
BEIS,Met Office,2022-03-30,11 SERVICES,MARKETS,ECOMET,23601,224809.44,EXEMPT
BEIS,Met Office,2022-03-30,11 SERVICES,SERVICES,OCEANIC ASSISTANCE,23607,11701.14,FR 51891653016
BEIS,Met Office,2022-03-09,11 SERVICES,SCIENCE,IEDRO,23608,1880.54,-
BEIS,Met Office,2022-03-16,11 SERVICES,CHIEF FINANCIAL OFFICER,TELIA FINLAND OYJ,23626,146.85,FI14756079
BEIS,Met Office,2022-03-30,13 MISCELLANEOUS,SERVICES,ESSL,23632,3195.72,DE252519763
BEIS,Met Office,2022-03-23,11 SERVICES,CHIEF FINANCIAL OFFICER,EIR,23636,51.27,4736919B
BEIS,Met Office,2022-03-23,11 SERVICES,CHIEF FINANCIAL OFFICER,DBS FINANCE RECEIPTS CTS,23637,164.09,888805068
BEIS,Met Office,2022-03-23,11 SERVICES,SCIENCE,UKRI,23644,36532.34,GB287461957
BEIS,Met Office,2022-03-23,11 SERVICES,SCIENCE,National Oceanography Centre,23645,-36532.34,GB 338 5487 64
BEIS,Met Office,2022-03-30,06 ACCOMMODATION,CHIEF FINANCIAL OFFICER,MALAKOFF LTD,386741,70,813782620
BEIS,Met Office,2022-03-30,06 ACCOMMODATION,CHIEF FINANCIAL OFFICER,MALAKOFF LTD,391571,-70,813782620
BEIS,Met Office,2022-03-31,11 SERVICES,PEOPLE,SKILLTEC LIMITED,427169,795,909833105
BEIS,Met Office,2022-03-15,11 SERVICES,CHIEF FINANCIAL OFFICER,VIRGIN MEDIA BUSINESS,431243,1.75,591819014
BEIS,Met Office,2022-03-31,11 SERVICES,SERVICES,SKILLTEC LIMITED,436836,1190,909833105
BEIS,Met Office,2022-03-31,11 SERVICES,PEOPLE,SKILLTEC LIMITED,438954,-795,909833105
BEIS,Met Office,2022-03-04,13 MISCELLANEOUS,CHIEF FINANCIAL OFFICER,I J CANNINGS & SON LTD,441669,5535.92,192803203
BEIS,Met Office,2022-03-04,13 MISCELLANEOUS,CHIEF FINANCIAL OFFICER,I J CANNINGS & SON LTD,441826,2950,192803203
BEIS,Met Office,2022-03-04,13 MISCELLANEOUS,OTHER,TNT INTERNATIONAL,446233,480.71,354715057
BEIS,Met Office,2022-03-24,11 SERVICES,PROGRAMMES,University Of Reading,447121,60000,200012659
BEIS,Met Office,2022-03-31,04 CONTRACTORS,TECHNOLOGY AND CIO,GCS IT RECRUITMENT SPECIALISTS LTD,448825,-2275,896156575
BEIS,Met Office,2022-03-31,04 CONTRACTORS,TECHNOLOGY AND CIO,GCS IT RECRUITMENT SPECIALISTS LTD,448837,2275,896156575
BEIS,Met Office,2022-03-31,06 ACCOMMODATION,CHIEF FINANCIAL OFFICER,GOVERNMENT PROPERTY AGENCY,449716,5094.53,888 8508 47
BEIS,Met Office,2022-03-24,11 SERVICES,PROGRAMMES,University Of Reading,451880,60000,200012659
BEIS,Met Office,2022-03-31,11 SERVICES,PROGRAMMES,University Of Cambridge,452450,52098.27,214222124
BEIS,Met Office,2022-03-04,13 MISCELLANEOUS,OTHER,TNT INTERNATIONAL,453688,-480.71,354715057
BEIS,Met Office,2022-03-02,11 SERVICES,MARKETS,VAISALA LTD,453701,632.5,336100011
BEIS,Met Office,2022-03-02,11 SERVICES,MARKETS,VAISALA LTD,453701,1746,336100011
BEIS,Met Office,2022-03-02,11 SERVICES,MARKETS,VAISALA LTD,453701,296,336100011
BEIS,Met Office,2022-03-02,11 SERVICES,MARKETS,VAISALA LTD,453703,648.5,336100011
BEIS,Met Office,2022-03-02,11 SERVICES,MARKETS,VAISALA LTD,453703,1791,336100011
BEIS,Met Office,2022-03-02,11 SERVICES,MARKETS,VAISALA LTD,453703,304,336100011
BEIS,Met Office,2022-03-07,11 SERVICES,PEOPLE,SKILLTEC LIMITED,453983,995,909833105
BEIS,Met Office,2022-03-31,13 MISCELLANEOUS,OTHER,Sac Commercial Ltd,454366,543,435882817
BEIS,Met Office,2022-03-31,FIXTURE & FITTINGS,CHIEF FINANCIAL OFFICER,FMS INTERIOR SERVICES LTD,456575,63.39,922056940
BEIS,Met Office,2022-03-31,FIXTURE & FITTINGS,CHIEF FINANCIAL OFFICER,FMS INTERIOR SERVICES LTD,456575,505.38,922056940
BEIS,Met Office,2022-03-31,FIXTURE & FITTINGS,SERVICES,FMS INTERIOR SERVICES LTD,456575,87,922056940
BEIS,Met Office,2022-03-31,FIXTURE & FITTINGS,SERVICES,FMS INTERIOR SERVICES LTD,456575,425,922056940
BEIS,Met Office,2022-03-31,FIXTURE & FITTINGS,SERVICES,FMS INTERIOR SERVICES LTD,456575,955.71,922056940
BEIS,Met Office,2022-03-31,FIXTURE & FITTINGS,SERVICES,FMS INTERIOR SERVICES LTD,456575,117.6,922056940
BEIS,Met Office,2022-03-31,FIXTURE & FITTINGS,SERVICES,FMS INTERIOR SERVICES LTD,456575,36.6,922056940
BEIS,Met Office,2022-03-31,FIXTURE & FITTINGS,SERVICES,FMS INTERIOR SERVICES LTD,456575,640,922056940
BEIS,Met Office,2022-03-31,FIXTURE & FITTINGS,SERVICES,FMS INTERIOR SERVICES LTD,456575,201,922056940
BEIS,Met Office,2022-03-31,FIXTURE & FITTINGS,SERVICES,FMS INTERIOR SERVICES LTD,456575,131.08,922056940
BEIS,Met Office,2022-03-31,FIXTURE & FITTINGS,SERVICES,FMS INTERIOR SERVICES LTD,456575,164.13,922056940
BEIS,Met Office,2022-03-31,FIXTURE & FITTINGS,SERVICES,FMS INTERIOR SERVICES LTD,456575,199.33,922056940
BEIS,Met Office,2022-03-04,13 MISCELLANEOUS,SCIENCE,University Of St Andrews,459779,2500,607606448
BEIS,Met Office,2022-03-04,13 MISCELLANEOUS,SCIENCE,University Of Oxford,460057,1000,125506730
BEIS,Met Office,2022-03-31,11 SERVICES,MARKETS,DESIGNAMITE LTD,460971,1470,817819989
BEIS,Met Office,2022-03-29,13 MISCELLANEOUS,SCIENCE,University Of Oxford,461041,1000,125506730
BEIS,Met Office,2022-03-07,11 SERVICES,TECHNOLOGY AND CIO,BAE SYSTEMS APPLIED INTELLIGENCE LIMITED,461474,9738.72,GB641407169
BEIS,Met Office,2022-03-31,11 SERVICES,PEOPLE,THE KNOWLEDGE ACADEMY LIMITED,461704,1200,GB970667487
BEIS,Met Office,2022-03-31,11 SERVICES,PEOPLE,THE KNOWLEDGE ACADEMY LIMITED,461704,1788,GB970667487
BEIS,Met Office,2022-03-14,11 SERVICES,MARKETS,BITPOD LIMITED,462020,1282.94,124 9359 03
BEIS,Met Office,2022-03-07,11 SERVICES,TECHNOLOGY AND CIO,BAE SYSTEMS APPLIED INTELLIGENCE LIMITED,462125,12443.92,GB641407169
BEIS,Met Office,2022-03-07,11 SERVICES,TECHNOLOGY AND CIO,BAE SYSTEMS APPLIED INTELLIGENCE LIMITED,462288,13132,GB641407169
BEIS,Met Office,2022-03-14,11 SERVICES,PROGRAMMES,University Of Leeds,462423,91427.2,613451470
BEIS,Met Office,2022-03-02,11 SERVICES,MARKETS,REDACTED PERSONAL DATA,462585,139.64,-
BEIS,Met Office,2022-03-23,08 SOFTWARE LICENCES,SERVICES,SOUTRON GLOBAL INC,462791,14588.84,863868129
BEIS,Met Office,2022-03-25,11 SERVICES,PROGRAMMES,FUNDACAO ARTHUR BERNARDES - FUNARBE,462812,1548527,-
BEIS,Met Office,2022-03-01,11 SERVICES,TECHNOLOGY AND CIO,BAE SYSTEMS APPLIED INTELLIGENCE LIMITED,462959,16415,GB641407169
BEIS,Met Office,2022-03-31,11 SERVICES,SERVICES,SKILLTEC LIMITED,463042,-1190,909833105
BEIS,Met Office,2022-03-18,FIXTURE & FITTINGS,CHIEF FINANCIAL OFFICER,TECHNICAL MATERIALS COMPANY LIMITED,463064,2642.05,193136211
BEIS,Met Office,2022-03-24,06 ACCOMMODATION,CHIEF FINANCIAL OFFICER,POD POINT,463118,-350,278743455
BEIS,Met Office,2022-03-18,13 MISCELLANEOUS,PEOPLE,HEALTH MANAGEMENT LTD,463222,2706.92,792250621
BEIS,Met Office,2022-03-30,11 SERVICES,TECHNOLOGY AND CIO,"IBL SOFTWARE ENGINEERING, SPOL S.R.O.",463223,22142.7,SK2020241883
BEIS,Met Office,2022-03-08,11 SERVICES,SCIENCE,THREE BLIND MICE LTD,463351,1700,GB 645 434 730
BEIS,Met Office,2022-03-01,08 SOFTWARE LICENCES,TECHNOLOGY AND CIO,Ibm United Kingdom Ltd,463513,2360,107328000
BEIS,Met Office,2022-03-31,11 SERVICES,MARKETS,SKATING PANDA LTD,463692,97920,887851360
BEIS,Met Office,2022-03-04,13 MISCELLANEOUS,SCIENCE,University Of St Andrews,463810,-2500,607606448
BEIS,Met Office,2022-03-02,FIXTURE & FITTINGS,CHIEF FINANCIAL OFFICER,CBRE MANAGED SERVICES LTD,464065,5926.25,853936883
BEIS,Met Office,2022-03-31,11 SERVICES,PEOPLE,THE KNOWLEDGE ACADEMY LIMITED,464119,-1200,GB970667487
BEIS,Met Office,2022-03-31,11 SERVICES,PEOPLE,THE KNOWLEDGE ACADEMY LIMITED,464119,-1788,GB970667487
BEIS,Met Office,2022-03-02,08 SOFTWARE LICENCES,SERVICES,COGNIZANT WORLDWIDE LIMITED,464237,9977.25,123382928
BEIS,Met Office,2022-03-02,08 SOFTWARE LICENCES,SERVICES,COGNIZANT WORLDWIDE LIMITED,464238,9977.25,123382928
BEIS,Met Office,2022-03-02,08 SOFTWARE LICENCES,SERVICES,COGNIZANT WORLDWIDE LIMITED,464239,9977.25,123382928
BEIS,Met Office,2022-03-02,08 SOFTWARE LICENCES,SERVICES,COGNIZANT WORLDWIDE LIMITED,464240,9977.25,123382928
BEIS,Met Office,2022-03-02,08 SOFTWARE LICENCES,SERVICES,COGNIZANT WORLDWIDE LIMITED,464241,9977.25,123382928
BEIS,Met Office,2022-03-25,11 SERVICES,TECHNOLOGY AND CIO,SOFTWAREONE,464265,358.86,GB 942 5301 43
BEIS,Met Office,2022-03-25,11 SERVICES,TECHNOLOGY AND CIO,SOFTWAREONE,464266,368.73,GB 942 5301 43
BEIS,Met Office,2022-03-31,STOCK,SERVICES,CARTER MANUFACTURING LIMITED,464345,-2892.96,750 0259 62
BEIS,Met Office,2022-03-31,STOCK,SERVICES,CARTER MANUFACTURING LIMITED,464345,0,750 0259 62
BEIS,Met Office,2022-03-31,TRADE CREDITORS,SERVICES,CARTER MANUFACTURING LIMITED,464345,5507.68,750 0259 62
BEIS,Met Office,2022-03-02,11 SERVICES,CHIEF FINANCIAL OFFICER,HOGAN LOVELLS INTERNATIONAL LLP,464423,31171.88,GB123371543
BEIS,Met Office,2022-03-03,11 SERVICES,CHIEF FINANCIAL OFFICER,LEASEDRIVE RENTAL MANAGEMENT LTD,464530,-9.95,733546040
BEIS,Met Office,2022-03-08,11 SERVICES,MARKETS,Cgi It Uk Limited,464549,190264.01,232615194
BEIS,Met Office,2022-03-31,13 MISCELLANEOUS,SCIENCE,Bangor University,464572,1000,GB728885674
BEIS,Met Office,2022-03-31,06 ACCOMMODATION,CHIEF FINANCIAL OFFICER,GOVERNMENT PROPERTY AGENCY,464668,-5094.53,888 8508 47
BEIS,Met Office,2022-03-02,11 SERVICES,CHIEF FINANCIAL OFFICER,SWISSCOM (SCHWEIZ) AG,464699,87.74,-
BEIS,Met Office,2022-03-09,08 SOFTWARE LICENCES,TECHNOLOGY AND CIO,"IBL SOFTWARE ENGINEERING, SPOL S.R.O.",464719,7066.61,SK2020241883
BEIS,Met Office,2022-03-09,08 SOFTWARE LICENCES,TECHNOLOGY AND CIO,"IBL SOFTWARE ENGINEERING, SPOL S.R.O.",464719,28713.16,SK2020241883
BEIS,Met Office,2022-03-04,13 MISCELLANEOUS,CHIEF FINANCIAL OFFICER,I J CANNINGS & SON LTD,464790,-5535.92,192803203
BEIS,Met Office,2022-03-04,13 MISCELLANEOUS,CHIEF FINANCIAL OFFICER,I J CANNINGS & SON LTD,464791,-2950,192803203
BEIS,Met Office,2022-03-04,CYCLESCHEME,OTHER,EDENRED UK (CYCLESCHEME),464814,1103.33,649 503 520
BEIS,Met Office,2022-03-02,11 SERVICES,PEOPLE,SWANTECH LOGISTICS LTD,464818,900,769332401
BEIS,Met Office,2022-03-16,11 SERVICES,PROGRAMMES,MAURITIUS METEOROLOGICAL SOCIETY,464830,9500,-
BEIS,Met Office,2022-03-31,STOCK,SERVICES,GH ZEAL LTD,464880,0,648929087
BEIS,Met Office,2022-03-31,TRADE CREDITORS,SERVICES,GH ZEAL LTD,464880,872.8,648929087
BEIS,Met Office,2022-03-24,06 ACCOMMODATION,CHIEF FINANCIAL OFFICER,POD POINT,464883,-350,278743455
BEIS,Met Office,2022-03-01,11 SERVICES,CHIEF FINANCIAL OFFICER,DIGITAL COMMUNICATIONS SYSTEMS LIMITED,464943,4557.03,GB 556 1971 19
BEIS,Met Office,2022-03-04,13 MISCELLANEOUS,SCIENCE,University Of Oxford,464965,-1000,125506730
BEIS,Met Office,2022-03-29,11 SERVICES,CHIEF FINANCIAL OFFICER,British Red Cross Society,464990,-318,706926227
BEIS,Met Office,2022-03-04,CYCLESCHEME,OTHER,EDENRED UK (CYCLESCHEME),465006,-1103.33,649 503 520
BEIS,Met Office,2022-03-16,11 SERVICES,CHIEF FINANCIAL OFFICER,POSTURITE (UK) LTD,465058,704.94,583565114
BEIS,Met Office,2022-03-01,06 ACCOMMODATION,CHIEF FINANCIAL OFFICER,VICKERY HOLMAN,465118,579.18,943875678
BEIS,Met Office,2022-03-01,11 SERVICES,SCIENCE,University Of Reading,465126,6987.61,200012659
BEIS,Met Office,2022-03-24,11 SERVICES,CHIEF FINANCIAL OFFICER,POD POINT,465214,210,278743455
BEIS,Met Office,2022-03-01,11 SERVICES,TECHNOLOGY AND CIO,BAE SYSTEMS APPLIED INTELLIGENCE LIMITED,465217,13601,GB641407169
BEIS,Met Office,2022-03-01,11 SERVICES,TECHNOLOGY AND CIO,BAE SYSTEMS APPLIED INTELLIGENCE LIMITED,465218,-16415,GB641407169
BEIS,Met Office,2022-03-01,11 SERVICES,CHIEF FINANCIAL OFFICER,POSTURITE (UK) LTD,465220,50,583565114
BEIS,Met Office,2022-03-01,07 EQUIPMENT,SERVICES,SENSING DEVICES LTD,465221,1019.7,163684738
BEIS,Met Office,2022-03-03,13 MISCELLANEOUS,PEOPLE,HEALTH MANAGEMENT LTD,465222,1581.76,792250621
BEIS,Met Office,2022-03-01,11 SERVICES,TECHNOLOGY AND CIO,BAE SYSTEMS APPLIED INTELLIGENCE LIMITED,465243,9240,GB641407169
BEIS,Met Office,2022-03-01,11 SERVICES,TECHNOLOGY AND CIO,BAE SYSTEMS APPLIED INTELLIGENCE LIMITED,465244,12540,GB641407169
BEIS,Met Office,2022-03-01,11 SERVICES,TECHNOLOGY AND CIO,BAE SYSTEMS APPLIED INTELLIGENCE LIMITED,465245,15946,GB641407169
BEIS,Met Office,2022-03-01,11 SERVICES,TECHNOLOGY AND CIO,BAE SYSTEMS APPLIED INTELLIGENCE LIMITED,465246,11220,GB641407169
BEIS,Met Office,2022-03-01,11 SERVICES,TECHNOLOGY AND CIO,BAE SYSTEMS APPLIED INTELLIGENCE LIMITED,465247,9738,GB641407169
BEIS,Met Office,2022-03-01,11 SERVICES,TECHNOLOGY AND CIO,BAE SYSTEMS APPLIED INTELLIGENCE LIMITED,465248,6497.1,GB641407169
BEIS,Met Office,2022-03-02,11 SERVICES,TECHNOLOGY AND CIO,BAE SYSTEMS APPLIED INTELLIGENCE LIMITED,465249,6492,GB641407169
BEIS,Met Office,2022-03-01,11 SERVICES,TECHNOLOGY AND CIO,BAE SYSTEMS APPLIED INTELLIGENCE LIMITED,465250,1800,GB641407169
BEIS,Met Office,2022-03-01,11 SERVICES,TECHNOLOGY AND CIO,BAE SYSTEMS APPLIED INTELLIGENCE LIMITED,465251,8493.75,GB641407169
BEIS,Met Office,2022-03-01,11 SERVICES,TECHNOLOGY AND CIO,BAE SYSTEMS APPLIED INTELLIGENCE LIMITED,465252,7033,GB641407169
BEIS,Met Office,2022-03-01,11 SERVICES,TECHNOLOGY AND CIO,BAE SYSTEMS APPLIED INTELLIGENCE LIMITED,465253,8550,GB641407169
BEIS,Met Office,2022-03-01,11 SERVICES,TECHNOLOGY AND CIO,BAE SYSTEMS APPLIED INTELLIGENCE LIMITED,465254,11880,GB641407169
BEIS,Met Office,2022-03-01,11 SERVICES,TECHNOLOGY AND CIO,BAE SYSTEMS APPLIED INTELLIGENCE LIMITED,465255,12540,GB641407169
BEIS,Met Office,2022-03-01,11 SERVICES,TECHNOLOGY AND CIO,BAE SYSTEMS APPLIED INTELLIGENCE LIMITED,465256,12540,GB641407169
BEIS,Met Office,2022-03-01,11 SERVICES,TECHNOLOGY AND CIO,BAE SYSTEMS APPLIED INTELLIGENCE LIMITED,465257,12540,GB641407169
BEIS,Met Office,2022-03-01,11 SERVICES,TECHNOLOGY AND CIO,BAE SYSTEMS APPLIED INTELLIGENCE LIMITED,465258,8550,GB641407169
BEIS,Met Office,2022-03-09,06 ACCOMMODATION,CHIEF FINANCIAL OFFICER,EDF ENERGY CUSTOMERS PLC,465259,104061.86,523041202
BEIS,Met Office,2022-03-01,11 SERVICES,TECHNOLOGY AND CIO,BAE SYSTEMS APPLIED INTELLIGENCE LIMITED,465260,16884,GB641407169
BEIS,Met Office,2022-03-01,11 SERVICES,TECHNOLOGY AND CIO,BAE SYSTEMS APPLIED INTELLIGENCE LIMITED,465261,8926.5,GB641407169
BEIS,Met Office,2022-03-01,11 SERVICES,TECHNOLOGY AND CIO,BAE SYSTEMS APPLIED INTELLIGENCE LIMITED,465262,11725,GB641407169
BEIS,Met Office,2022-03-01,11 SERVICES,TECHNOLOGY AND CIO,BAE SYSTEMS APPLIED INTELLIGENCE LIMITED,465263,19095,GB641407169
BEIS,Met Office,2022-03-01,11 SERVICES,TECHNOLOGY AND CIO,BAE SYSTEMS APPLIED INTELLIGENCE LIMITED,465264,9900,GB641407169
BEIS,Met Office,2022-03-01,11 SERVICES,TECHNOLOGY AND CIO,BAE SYSTEMS APPLIED INTELLIGENCE LIMITED,465265,9738,GB641407169
BEIS,Met Office,2022-03-01,11 SERVICES,TECHNOLOGY AND CIO,BAE SYSTEMS APPLIED INTELLIGENCE LIMITED,465266,15946,GB641407169
BEIS,Met Office,2022-03-16,13 MISCELLANEOUS,SERVICES,MEIHUIZEN INTERNATIONAL,465267,261.89,4450101763
BEIS,Met Office,2022-03-09,06 ACCOMMODATION,CHIEF FINANCIAL OFFICER,EDF ENERGY CUSTOMERS PLC,465269,-139745.29,523041202
BEIS,Met Office,2022-03-09,06 ACCOMMODATION,CHIEF FINANCIAL OFFICER,EDF ENERGY CUSTOMERS PLC,465270,-104069.12,523041202
BEIS,Met Office,2022-03-03,11 SERVICES,CHIEF FINANCIAL OFFICER,MITIE SECURITY LTD,465275,10294.23,416706654
BEIS,Met Office,2022-03-03,11 SERVICES,CHIEF FINANCIAL OFFICER,MITIE SECURITY LTD,465276,20588.08,416706654
BEIS,Met Office,2022-03-02,07 EQUIPMENT,TECHNOLOGY AND CIO,BT BUSINESS DIRECT,465277,5679.24,GB 245 7193 48
BEIS,Met Office,2022-03-01,06 ACCOMMODATION,CHIEF FINANCIAL OFFICER,OCS Group UK Limited,465279,38078.94,GB238034379
BEIS,Met Office,2022-03-01,06 ACCOMMODATION,CHIEF FINANCIAL OFFICER,OCS Group UK Limited,465279,109368.93,GB238034379
BEIS,Met Office,2022-03-01,07 EQUIPMENT,PROGRAMMES,BLACK BOX NETWORK SERVICES (UK) LTD,465280,548,GB834864303
BEIS,Met Office,2022-03-01,11 SERVICES,PEOPLE,PSYCHOLOGICA,465305,330,143530636
BEIS,Met Office,2022-03-02,11 SERVICES,CHIEF FINANCIAL OFFICER,BUILDING PROTECTION SYSTEMS (NI) LTD,465306,70.91,366309834
BEIS,Met Office,2022-03-01,08 SOFTWARE LICENCES,TECHNOLOGY AND CIO,Ibm United Kingdom Ltd,465307,9765,107328000
BEIS,Met Office,2022-03-02,13 MISCELLANEOUS,CHIEF FINANCIAL OFFICER,EDEN SPRINGS UK LTD,465312,392.32,232160411
BEIS,Met Office,2022-03-02,13 MISCELLANEOUS,CHIEF FINANCIAL OFFICER,EDEN SPRINGS UK LTD,465312,104.46,232160411
BEIS,Met Office,2022-03-02,11 SERVICES,CHIEF FINANCIAL OFFICER,WEBEX COMMUNICATIONS UK LTD,465313,209.92,815974302
BEIS,Met Office,2022-03-01,10 EQUIPMENT MAINTENANCE,TECHNOLOGY AND CIO,COMPUTACENTER (UK) LTD,465314,2527.95,490334648
BEIS,Met Office,2022-03-02,11 SERVICES,CHIEF FINANCIAL OFFICER,FSI (FM SOLUTIONS) LTD,465315,1980,166398173
BEIS,Met Office,2022-03-02,FIXTURE & FITTINGS,CHIEF FINANCIAL OFFICER,SSE CONTRACTING LTD,465317,410,382894546
BEIS,Met Office,2022-03-04,07 EQUIPMENT,PROGRAMMES,SSE CONTRACTING LTD,465318,307,382894546
BEIS,Met Office,2022-03-02,03 STAFF COSTS T&S,SERVICES,CHARLIE'S TRAVEL LTD,465319,220,783848277
BEIS,Met Office,2022-03-04,11 SERVICES,PEOPLE,ACTIVE LEARNING TEAM LTD,465320,700,-
BEIS,Met Office,2022-03-03,13 MISCELLANEOUS,CHIEF FINANCIAL OFFICER,CANON UK LTD,465321,350,523797128
BEIS,Met Office,2022-03-02,06 ACCOMMODATION,CHIEF FINANCIAL OFFICER,CARDIFF EXECUTIVE CENTRE LTD,465322,2470,864497378
BEIS,Met Office,2022-03-02,13 MISCELLANEOUS,CHIEF FINANCIAL OFFICER,CARDIFF EXECUTIVE CENTRE LTD,465323,0.86,864497378
BEIS,Met Office,2022-03-04,PAYE AND VAT,OTHER,RIVEROAK MSE LIMITED,465324,0,326 084 707
BEIS,Met Office,2022-03-02,11 SERVICES,MARKETS,OSBORNE CLARKE LLP,465325,900,GB138187353
BEIS,Met Office,2022-03-02,11 SERVICES,CHIEF FINANCIAL OFFICER,PRIMETECH (UK) LTD,465326,2220,694212039
BEIS,Met Office,2022-03-04,11 SERVICES,CHIEF FINANCIAL OFFICER,PRIMETECH (UK) LTD,465327,1755,694212039
BEIS,Met Office,2022-03-04,11 SERVICES,CHIEF FINANCIAL OFFICER,PRIMETECH (UK) LTD,465327,6596.08,694212039
BEIS,Met Office,2022-03-04,11 SERVICES,CHIEF FINANCIAL OFFICER,PRIMETECH (UK) LTD,465327,1400,694212039
BEIS,Met Office,2022-03-04,07 EQUIPMENT,SERVICES,Hydrosphere Uk Limited,465328,6768,641275549
BEIS,Met Office,2022-03-04,13 MISCELLANEOUS,SERVICES,Hydrosphere Uk Limited,465328,74.1,641275549
BEIS,Met Office,2022-03-04,07 EQUIPMENT,SERVICES,Hydrosphere Uk Limited,465329,5424,641275549
BEIS,Met Office,2022-03-04,07 EQUIPMENT,SERVICES,Hydrosphere Uk Limited,465329,2627,641275549
BEIS,Met Office,2022-03-04,11 SERVICES,SERVICES,Hydrosphere Uk Limited,465329,148.2,641275549
BEIS,Met Office,2022-03-04,05 CONSULTANTS,CHIEF FINANCIAL OFFICER,WT CONSULTANCY (SW) LTD,465331,6125,223 4662 25
BEIS,Met Office,2022-03-03,08 SOFTWARE LICENCES,TECHNOLOGY AND CIO,ENTERPRISEDB UK LIMITED,465332,14763,GB 886 1062 11
BEIS,Met Office,2022-03-02,08 SOFTWARE LICENCES,TECHNOLOGY AND CIO,Ibm United Kingdom Ltd,465333,6292.52,107328000
BEIS,Met Office,2022-03-04,11 SERVICES,CHIEF FINANCIAL OFFICER,POSTURITE (UK) LTD,465334,319.18,583565114
BEIS,Met Office,2022-03-04,11 SERVICES,MARKETS,Bray Leino Ltd,465335,15250,135605525
BEIS,Met Office,2022-03-03,06 ACCOMMODATION,CHIEF FINANCIAL OFFICER,CONDECO LTD,465336,487.6,756256215
BEIS,Met Office,2022-03-03,08 SOFTWARE LICENCES,TECHNOLOGY AND CIO,SITEMORSE (UK SALES) LTD,465337,11025,928339691
BEIS,Met Office,2022-03-03,13 MISCELLANEOUS,CHIEF FINANCIAL OFFICER,EAST ANGLIAN WATER COOLER CO,465339,13.5,676668178
BEIS,Met Office,2022-03-01,11 SERVICES,MARKETS,ULTRA ELECTRONICS LTD NUCLEAR CONTROL SYSTEMS,465340,4926.81,123340754
BEIS,Met Office,2022-03-02,11 SERVICES,MARKETS,University Of Leeds,465341,3312.57,613451470
BEIS,Met Office,2022-03-01,11 SERVICES,CHIEF FINANCIAL OFFICER,LICENCE BUREAU LTD,465342,95.6,820219467
BEIS,Met Office,2022-03-02,12 INTERNATIONAL,MARKETS,FOXSTONES TRAINING AND LEARNING,465343,2950,-
BEIS,Met Office,2022-03-02,11 SERVICES,TECHNOLOGY AND CIO,SSE CONTRACTING LTD,465344,10393.84,382894546
BEIS,Met Office,2022-03-02,06 ACCOMMODATION,CHIEF FINANCIAL OFFICER,CARDIFF EXECUTIVE CENTRE LTD,465345,2470,864497378
BEIS,Met Office,2022-03-03,11 SERVICES,SERVICES,SOFTWIRE TECHNOLOGY LIMITED,465346,2520,752 1253 57
BEIS,Met Office,2022-03-02,06 ACCOMMODATION,CHIEF FINANCIAL OFFICER,CBRE LTD,465348,3500,GB 736 3179 23
BEIS,Met Office,2022-03-21,03 STAFF COSTS T&S,CHIEF FINANCIAL OFFICER,ENTERPRISE RENT A CAR UK LTD,465349,2316.59,215557314
BEIS,Met Office,2022-03-02,11 SERVICES,MARKETS,SKATING PANDA LTD,465371,24480,887851360
BEIS,Met Office,2022-03-03,06 ACCOMMODATION,CHIEF FINANCIAL OFFICER,CARDIFF EXECUTIVE CENTRE LTD,465372,2470,864497378
BEIS,Met Office,2022-03-03,06 ACCOMMODATION,CHIEF FINANCIAL OFFICER,DALCOUR MACLAREN LTD,465373,1500,823 6484 20
BEIS,Met Office,2022-03-04,13 MISCELLANEOUS,SCIENCE,University Of Oxford,465374,333.33,125506730
BEIS,Met Office,2022-03-02,11 SERVICES,CHIEF FINANCIAL OFFICER,ALLSTAR BUSINESS SOLUTIONS LTD,465375,2835.37,747880191
BEIS,Met Office,2022-03-03,11 SERVICES,MARKETS,Hr Wallingford Ltd,465381,25750,570039752
BEIS,Met Office,2022-03-03,11 SERVICES,PROGRAMMES,University Of Reading,465382,33289.33,200012659
BEIS,Met Office,2022-03-04,03 STAFF COSTS T&S,SERVICES,CHARLIE'S TRAVEL LTD,465383,130,783848277
BEIS,Met Office,2022-03-03,11 SERVICES,PROGRAMMES,ALTO AEROSPACE LIMITED,465384,52969.5,275002528
BEIS,Met Office,2022-03-02,11 SERVICES,TECHNOLOGY AND CIO,UKCLOUD LTD,465385,1181.68,172647982
BEIS,Met Office,2022-03-03,11 SERVICES,MARKETS,ADOPSTAR,465386,1250,115036848
BEIS,Met Office,2022-03-07,11 SERVICES,MARKETS,BEHAVIOURAL INSIGHTS LIMITED,465387,23180,384 7173 66
BEIS,Met Office,2022-03-03,12 INTERNATIONAL,MARKETS,FCDO SERVICES,465388,3406.85,888848729
BEIS,Met Office,2022-03-03,11 SERVICES,TECHNOLOGY AND CIO,WIREFAST LTD,465389,1077.99,749536001
BEIS,Met Office,2022-03-03,11 SERVICES,TECHNOLOGY AND CIO,WIREFAST LTD,465390,1131.47,749536001
BEIS,Met Office,2022-03-03,11 SERVICES,TECHNOLOGY AND CIO,WIREFAST LTD,465391,2040.7,749536001
BEIS,Met Office,2022-03-07,11 SERVICES,CHIEF FINANCIAL OFFICER,MITIE SECURITY LTD,465392,816.75,416706654
BEIS,Met Office,2022-03-07,11 SERVICES,CHIEF FINANCIAL OFFICER,MITIE SECURITY LTD,465393,1234.56,416706654
BEIS,Met Office,2022-03-03,08 SOFTWARE LICENCES,TECHNOLOGY AND CIO,Ibm United Kingdom Ltd,465394,11217.7,107328000
BEIS,Met Office,2022-03-03,13 MISCELLANEOUS,CHIEF FINANCIAL OFFICER,DWYFOR COFFEE COMPANY LTD,465395,30.18,559811116
BEIS,Met Office,2022-03-03,SOFTWARE LICENCES,MARKETS,Esri (Uk) Ltd,465396,5193.33,787430791
BEIS,Met Office,2022-03-03,11 SERVICES,PROGRAMMES,Esri (Uk) Ltd,465397,2491,787430791
BEIS,Met Office,2022-03-03,13 MISCELLANEOUS,CHIEF FINANCIAL OFFICER,CANON UK LTD,465398,206.07,523797128
BEIS,Met Office,2022-03-04,13 MISCELLANEOUS,PEOPLE,BROADBEAN TECHNOLOGY LTD,465399,1183.05,GB184088778
BEIS,Met Office,2022-03-09,11 SERVICES,SERVICES,Boc Ltd,465400,20376.78,226556555
BEIS,Met Office,2022-03-31,11 SERVICES,SERVICES,COGNIZANT WORLDWIDE LIMITED,465401,9977.25,123382928
BEIS,Met Office,2022-03-31,08 SOFTWARE LICENCES,SERVICES,COGNIZANT WORLDWIDE LIMITED,465402,-9977.25,123382928
BEIS,Met Office,2022-03-04,12 INTERNATIONAL,MARKETS,IDEMS INTERNATIONAL COMMUNITY INTEREST CO,465403,22477.86,-
BEIS,Met Office,2022-03-14,11 SERVICES,PROGRAMMES,Hr Wallingford Ltd,465404,93977,570039752
BEIS,Met Office,2022-03-14,11 SERVICES,PROGRAMMES,Hr Wallingford Ltd,465404,38523,570039752
BEIS,Met Office,2022-03-02,11 SERVICES,CHIEF FINANCIAL OFFICER,DUN & BRADSTREET LTD,465406,26747,505189158
BEIS,Met Office,2022-03-31,11 SERVICES,PROGRAMMES,ESCOTT HUNT LTD,465407,237.5,815727127
BEIS,Met Office,2022-03-31,11 SERVICES,PROGRAMMES,ESCOTT HUNT LTD,465407,237.5,815727127
BEIS,Met Office,2022-03-31,11 SERVICES,MARKETS,ESCOTT HUNT LTD,465408,-475,815727127
BEIS,Met Office,2022-03-08,11 SERVICES,PROGRAMMES,BAE SYSTEMS APPLIED INTELLIGENCE LIMITED,465438,12540,GB641407169
BEIS,Met Office,2022-03-08,11 SERVICES,PROGRAMMES,BAE SYSTEMS APPLIED INTELLIGENCE LIMITED,465439,17822,GB641407169
BEIS,Met Office,2022-03-08,11 SERVICES,PROGRAMMES,BAE SYSTEMS APPLIED INTELLIGENCE LIMITED,465440,27330.5,GB641407169
BEIS,Met Office,2022-03-08,11 SERVICES,PROGRAMMES,BAE SYSTEMS APPLIED INTELLIGENCE LIMITED,465441,17822,GB641407169
BEIS,Met Office,2022-03-08,11 SERVICES,PROGRAMMES,BAE SYSTEMS APPLIED INTELLIGENCE LIMITED,465442,26386.14,GB641407169
BEIS,Met Office,2022-03-08,11 SERVICES,PROGRAMMES,BAE SYSTEMS APPLIED INTELLIGENCE LIMITED,465443,21224.75,GB641407169
BEIS,Met Office,2022-03-08,11 SERVICES,PROGRAMMES,BAE SYSTEMS APPLIED INTELLIGENCE LIMITED,465444,26264,GB641407169
BEIS,Met Office,2022-03-08,11 SERVICES,PROGRAMMES,BAE SYSTEMS APPLIED INTELLIGENCE LIMITED,465445,10350,GB641407169
BEIS,Met Office,2022-03-08,11 SERVICES,PROGRAMMES,BAE SYSTEMS APPLIED INTELLIGENCE LIMITED,465446,21224.75,GB641407169
BEIS,Met Office,2022-03-08,11 SERVICES,PROGRAMMES,BAE SYSTEMS APPLIED INTELLIGENCE LIMITED,465447,10008.5,GB641407169
BEIS,Met Office,2022-03-08,11 SERVICES,PROGRAMMES,BAE SYSTEMS APPLIED INTELLIGENCE LIMITED,465448,20474,GB641407169
BEIS,Met Office,2022-03-07,11 SERVICES,TECHNOLOGY AND CIO,BAE SYSTEMS APPLIED INTELLIGENCE LIMITED,465449,-9738.72,GB641407169
BEIS,Met Office,2022-03-07,11 SERVICES,TECHNOLOGY AND CIO,BAE SYSTEMS APPLIED INTELLIGENCE LIMITED,465450,-12443.92,GB641407169
BEIS,Met Office,2022-03-07,11 SERVICES,TECHNOLOGY AND CIO,BAE SYSTEMS APPLIED INTELLIGENCE LIMITED,465451,-13132,GB641407169
BEIS,Met Office,2022-03-07,11 SERVICES,TECHNOLOGY AND CIO,BAE SYSTEMS APPLIED INTELLIGENCE LIMITED,465455,9738,GB641407169
BEIS,Met Office,2022-03-07,11 SERVICES,TECHNOLOGY AND CIO,BAE SYSTEMS APPLIED INTELLIGENCE LIMITED,465457,8115,GB641407169
BEIS,Met Office,2022-03-04,11 SERVICES,CHIEF FINANCIAL OFFICER,BT BUSINESS DIRECT,465460,10733.74,GB 245 7193 48
BEIS,Met Office,2022-03-04,06 ACCOMMODATION,CHIEF FINANCIAL OFFICER,TOP RANK CLEANING SERVICES LTD,465461,914,-
BEIS,Met Office,2022-03-03,PLANT AND EQUIPMENT,SERVICES,J & J NEGUS LTD,465463,69777,GB273543159
BEIS,Met Office,2022-03-04,05 CONSULTANTS,CHIEF FINANCIAL OFFICER,WT CONSULTANCY (SW) LTD,465464,4550,223 4662 25
BEIS,Met Office,2022-03-03,11 SERVICES,CHIEF FINANCIAL OFFICER,LEASEDRIVE RENTAL MANAGEMENT LTD,465465,165,733546040
BEIS,Met Office,2022-03-07,11 SERVICES,TECHNOLOGY AND CIO,BAE SYSTEMS APPLIED INTELLIGENCE LIMITED,465466,16884,GB641407169
BEIS,Met Office,2022-03-03,08 SOFTWARE LICENCES,TECHNOLOGY AND CIO,GOOGLE IRELAND LTD,465467,42.76,6388047V
BEIS,Met Office,2022-03-10,08 SOFTWARE LICENCES,TECHNOLOGY AND CIO,LNRS DATA SERVICES LTD,465468,17988.75,730859520
BEIS,Met Office,2022-03-03,04 CONTRACTORS,SERVICES,AFBI,465478,50,252677738
BEIS,Met Office,2022-03-03,04 CONTRACTORS,SERVICES,REDACTED PERSONAL DATA,465481,1893.34,267253251
BEIS,Met Office,2022-03-03,04 CONTRACTORS,SERVICES,EAST LOTHIAN COUNCIL - GENERAL FUND,465482,150,-
BEIS,Met Office,2022-03-03,04 CONTRACTORS,SERVICES,REDACTED PERSONAL DATA,465484,200,-
BEIS,Met Office,2022-03-31,11 SERVICES,MARKETS,SKATING PANDA LTD,465485,-97920,887851360
BEIS,Met Office,2022-03-31,11 SERVICES,PROGRAMMES,University Of Cambridge,465486,-52098.27,214222124
BEIS,Met Office,2022-03-31,08 SOFTWARE LICENCES,CHIEF FINANCIAL OFFICER,LOGICALIS UK Limited,465513,14004.62,864475392
BEIS,Met Office,2022-03-31,08 SOFTWARE LICENCES,CHIEF FINANCIAL OFFICER,LOGICALIS UK Limited,465513,134271.04,864475392
BEIS,Met Office,2022-03-07,04 CONTRACTORS,PEOPLE,MATRIX SCM LIMITED,465514,304832.27,249 5734 68
BEIS,Met Office,2022-03-08,11 SERVICES,PROGRAMMES,KYMA MEDIA,465515,45500,-
BEIS,Met Office,2022-03-04,11 SERVICES,PROGRAMMES,FLYFORM LTD,465516,7462.5,237333808
BEIS,Met Office,2022-03-04,11 SERVICES,PROGRAMMES,FLYFORM LTD,465516,11940,237333808
BEIS,Met Office,2022-03-04,11 SERVICES,PROGRAMMES,FLYFORM LTD,465516,2388,237333808
BEIS,Met Office,2022-03-07,11 SERVICES,PROGRAMMES,FLYFORM LTD,465517,6000,237333808
BEIS,Met Office,2022-03-09,INFORMATION TECHNOLOGY,TECHNOLOGY AND CIO,COMPUTACENTER (UK) LTD,465518,160838,490334648
BEIS,Met Office,2022-03-07,11 SERVICES,PROGRAMMES,FLYFORM LTD,465519,36370,237333808
BEIS,Met Office,2022-03-08,11 SERVICES,PROGRAMMES,University Of Reading,465520,64185,200012659
BEIS,Met Office,2022-03-08,11 SERVICES,TECHNOLOGY AND CIO,FLYFORM LTD,465521,19900,237333808
BEIS,Met Office,2022-03-04,11 SERVICES,SERVICES,FLYFORM LTD,465522,29909,237333808
BEIS,Met Office,2022-03-04,11 SERVICES,SERVICES,FLYFORM LTD,465523,2487.5,237333808
BEIS,Met Office,2022-03-31,13 MISCELLANEOUS,OTHER,Sac Commercial Ltd,465525,-543,435882817
BEIS,Met Office,2022-03-08,11 SERVICES,PROGRAMMES,KYMA MEDIA,465526,12500,-
BEIS,Met Office,2022-03-07,11 SERVICES,PROGRAMMES,ROWE IT LTD,465527,102935,924964394
BEIS,Met Office,2022-03-07,11 SERVICES,MARKETS,AEROSPACE & MARINE INTERNATIONAL (UK) LIMITED,465528,22800,GB 856729086
BEIS,Met Office,2022-03-04,11 SERVICES,MARKETS,CACI LTD,465529,111815.44,380609841
BEIS,Met Office,2022-03-04,06 ACCOMMODATION,CHIEF FINANCIAL OFFICER,Valuation Office Agency,465531,6830,888848141
BEIS,Met Office,2022-03-04,06 ACCOMMODATION,CHIEF FINANCIAL OFFICER,British Gas Trading Ltd,465532,31.41,684966762
BEIS,Met Office,2022-03-09,11 SERVICES,SERVICES,INMARSAT SOLUTIONS (CANADA) INC,465534,59.12,766144223
BEIS,Met Office,2022-03-09,11 SERVICES,SERVICES,INMARSAT SOLUTIONS (CANADA) INC,465535,2033.06,766144223
BEIS,Met Office,2022-03-04,13 MISCELLANEOUS,SERVICES,IMAGETEK SYSTEMS LTD,465536,1518.56,GB586331424
BEIS,Met Office,2022-03-09,11 SERVICES,MARKETS,BEHAVIOURAL INSIGHTS LIMITED,465562,3675,384 7173 66
BEIS,Met Office,2022-03-15,13 MISCELLANEOUS,SERVICES,IMAGETEK SYSTEMS LTD,465563,2650.83,GB586331424
BEIS,Met Office,2022-03-09,11 SERVICES,MARKETS,SPOKE (INTERACTIVE) LTD,465564,700,840156451
BEIS,Met Office,2022-03-09,11 SERVICES,PROGRAMMES,KYMA MEDIA,465565,20000,-
BEIS,Met Office,2022-03-09,11 SERVICES,TECHNOLOGY AND CIO,AKAMAI TECHNOLOGIES LTD,465566,4921.28,745091237
BEIS,Met Office,2022-03-09,11 SERVICES,TECHNOLOGY AND CIO,AKAMAI TECHNOLOGIES LTD,465566,25836.75,745091237
BEIS,Met Office,2022-03-10,13 MISCELLANEOUS,MARKETS,UNITED KINGDOM RESEARCH AND INNOVATION (UKRI),465567,97234.92,GB287461957
BEIS,Met Office,2022-03-08,11 SERVICES,CHIEF FINANCIAL OFFICER,ADVANCED BUSINESS SOLUTIONS LTD,465568,10200,927547983
BEIS,Met Office,2022-03-09,12 INTERNATIONAL,MARKETS,MACITECHSY SOLUTIONS,465569,640,-
BEIS,Met Office,2022-03-09,CYCLESCHEME,OTHER,EDENRED UK (CYCLESCHEME),465570,7340.23,649 503 520
BEIS,Met Office,2022-03-08,12 INTERNATIONAL,MARKETS,CROWN AGENTS BANK,465571,17028.98,-
BEIS,Met Office,2022-03-15,11 SERVICES,MARKETS,WALNUT UNLIMITED LIMITED,465572,24950,648857968
BEIS,Met Office,2022-03-07,06 ACCOMMODATION,CHIEF FINANCIAL OFFICER,TENNIE FACILITIES PROPERTY MANAGEMENT LTD,465573,165.72,982055803
BEIS,Met Office,2022-03-09,11 SERVICES,PROGRAMMES,ROWE IT LTD,465574,73987.5,924964394
BEIS,Met Office,2022-03-09,11 SERVICES,PROGRAMMES,ROWE IT LTD,465575,56482.5,924964394
BEIS,Met Office,2022-03-08,11 SERVICES,PROGRAMMES,THE BEHAVIORAL ARCHITECTS,465576,20000,108121459
BEIS,Met Office,2022-03-07,11 SERVICES,PROGRAMMES,ROWE IT LTD,465577,9714.82,924964394
BEIS,Met Office,2022-03-07,11 SERVICES,PROGRAMMES,ROWE IT LTD,465577,21048.79,924964394
BEIS,Met Office,2022-03-07,11 SERVICES,PROGRAMMES,ROWE IT LTD,465577,2158.85,924964394
BEIS,Met Office,2022-03-07,11 SERVICES,PROGRAMMES,ROWE IT LTD,465577,21048.79,924964394
BEIS,Met Office,2022-03-09,11 SERVICES,PROGRAMMES,ROWE IT LTD,465578,15000,924964394
BEIS,Met Office,2022-03-09,11 SERVICES,PEOPLE,DRIVE CREATIVE STUDIO LTD,465579,20000,167656860
BEIS,Met Office,2022-03-09,11 SERVICES,MARKETS,Cgi It Uk Limited,465580,190264.01,232615194
BEIS,Met Office,2022-03-08,13 MISCELLANEOUS,SERVICES,IMAGETEK SYSTEMS LTD,465581,2920.9,GB586331424
BEIS,Met Office,2022-03-07,06 ACCOMMODATION,CHIEF FINANCIAL OFFICER,R BROOKS - TATTON ESTATE,465582,1100,185664958
BEIS,Met Office,2022-03-07,10 EQUIPMENT MAINTENANCE,SERVICES,FLUKE UK LTD,465583,1213,625938805
BEIS,Met Office,2022-03-07,10 EQUIPMENT MAINTENANCE,SERVICES,FLUKE UK LTD,465583,942,625938805
BEIS,Met Office,2022-03-09,06 ACCOMMODATION,CHIEF FINANCIAL OFFICER,EDF ENERGY CUSTOMERS PLC,465584,130725.55,523041202
BEIS,Met Office,2022-03-09,06 ACCOMMODATION,CHIEF FINANCIAL OFFICER,EDF ENERGY CUSTOMERS PLC,465585,370887.22,523041202
BEIS,Met Office,2022-03-09,06 ACCOMMODATION,CHIEF FINANCIAL OFFICER,EDF ENERGY CUSTOMERS PLC,465586,101103.46,523041202
BEIS,Met Office,2022-03-08,07 EQUIPMENT,SCIENCE,SEECO (UK) LTD,465591,70.05,426 547 442
BEIS,Met Office,2022-03-08,07 EQUIPMENT,SCIENCE,SEECO (UK) LTD,465591,76.05,426 547 442
BEIS,Met Office,2022-03-21,11 SERVICES,PROGRAMMES,THE NATIONAL LOTTERY COMMUNITY FUND,465592,13800.08,899 3679 32
BEIS,Met Office,2022-03-09,10 EQUIPMENT MAINTENANCE,TECHNOLOGY AND CIO,COMPUTACENTER (UK) LTD,465595,3116.64,490334648
BEIS,Met Office,2022-03-09,11 SERVICES,TECHNOLOGY AND CIO,COMPUTACENTER (UK) LTD,465596,286875,490334648
BEIS,Met Office,2022-03-10,08 SOFTWARE LICENCES,PEOPLE,CATALYST IT,465597,2075,978169262
BEIS,Met Office,2022-03-18,07 EQUIPMENT,PROGRAMMES,TELEGARTNER UK LIMITED,465598,799.44,490 3131 69
BEIS,Met Office,2022-03-08,11 SERVICES,PROGRAMMES,IAME LTD,465599,7500,140304468
BEIS,Met Office,2022-03-09,11 SERVICES,MARKETS,PAUL WATKISS ASSOCIATES LTD,465600,2500,869587641
BEIS,Met Office,2022-03-08,13 MISCELLANEOUS,SCIENCE,JOHN WILEY & SONS LTD,465601,2550,376766987
BEIS,Met Office,2022-03-09,11 SERVICES,CHIEF FINANCIAL OFFICER,REDACTED PERSONAL DATA,465602,153,729159704
BEIS,Met Office,2022-03-10,11 SERVICES,CHIEF FINANCIAL OFFICER,G4S FIRE & SECURITY SYSTEMS (UK),465603,3552,238560256
BEIS,Met Office,2022-03-08,06 ACCOMMODATION,CHIEF FINANCIAL OFFICER,RIVER RIDGE,465604,108.76,176286083
BEIS,Met Office,2022-03-21,03 STAFF COSTS T&S,CHIEF FINANCIAL OFFICER,ENTERPRISE RENT A CAR UK LTD,465605,2000.91,215557314
BEIS,Met Office,2022-03-09,11 SERVICES,PEOPLE,SWANTECH LOGISTICS LTD,465606,900,769332401
BEIS,Met Office,2022-03-09,13 MISCELLANEOUS,PROGRAMMES,ROYAL MET SOCIETY,465607,100,-
BEIS,Met Office,2022-03-14,11 SERVICES,TECHNOLOGY AND CIO,BAE SYSTEMS APPLIED INTELLIGENCE LIMITED,465609,10279,GB641407169
BEIS,Met Office,2022-03-14,11 SERVICES,TECHNOLOGY AND CIO,BAE SYSTEMS APPLIED INTELLIGENCE LIMITED,465610,1800,GB641407169
BEIS,Met Office,2022-03-14,11 SERVICES,TECHNOLOGY AND CIO,BAE SYSTEMS APPLIED INTELLIGENCE LIMITED,465611,9000,GB641407169
BEIS,Met Office,2022-03-14,11 SERVICES,TECHNOLOGY AND CIO,BAE SYSTEMS APPLIED INTELLIGENCE LIMITED,465613,9000,GB641407169
BEIS,Met Office,2022-03-14,11 SERVICES,TECHNOLOGY AND CIO,BAE SYSTEMS APPLIED INTELLIGENCE LIMITED,465617,8115,GB641407169
BEIS,Met Office,2022-03-14,11 SERVICES,TECHNOLOGY AND CIO,BAE SYSTEMS APPLIED INTELLIGENCE LIMITED,465618,11220,GB641407169
BEIS,Met Office,2022-03-14,11 SERVICES,TECHNOLOGY AND CIO,BAE SYSTEMS APPLIED INTELLIGENCE LIMITED,465620,18760,GB641407169
BEIS,Met Office,2022-03-14,11 SERVICES,TECHNOLOGY AND CIO,BAE SYSTEMS APPLIED INTELLIGENCE LIMITED,465623,12540,GB641407169
BEIS,Met Office,2022-03-14,11 SERVICES,TECHNOLOGY AND CIO,BAE SYSTEMS APPLIED INTELLIGENCE LIMITED,465624,13200,GB641407169
BEIS,Met Office,2022-03-14,11 SERVICES,TECHNOLOGY AND CIO,BAE SYSTEMS APPLIED INTELLIGENCE LIMITED,465627,10279,GB641407169
BEIS,Met Office,2022-03-14,11 SERVICES,TECHNOLOGY AND CIO,BAE SYSTEMS APPLIED INTELLIGENCE LIMITED,465629,10008.5,GB641407169
BEIS,Met Office,2022-03-14,11 SERVICES,TECHNOLOGY AND CIO,BAE SYSTEMS APPLIED INTELLIGENCE LIMITED,465630,13132,GB641407169
BEIS,Met Office,2022-03-14,11 SERVICES,TECHNOLOGY AND CIO,BAE SYSTEMS APPLIED INTELLIGENCE LIMITED,465632,12210,GB641407169
BEIS,Met Office,2022-03-14,11 SERVICES,TECHNOLOGY AND CIO,BAE SYSTEMS APPLIED INTELLIGENCE LIMITED,465633,10279,GB641407169
BEIS,Met Office,2022-03-14,FIXTURE & FITTINGS,CHIEF FINANCIAL OFFICER,FMS INTERIOR SERVICES LTD,465635,4057.14,922056940
BEIS,Met Office,2022-03-11,11 SERVICES,PEOPLE,FRANCIS CLARK LLP,465637,1900,855910212
BEIS,Met Office,2022-03-29,11 SERVICES,MARKETS,ORIENTATIONS EVENTS LTD,465652,161784.74,374434389
BEIS,Met Office,2022-03-25,07 EQUIPMENT,TECHNOLOGY AND CIO,UK CONNECT LTD,465655,350,154468983
BEIS,Met Office,2022-03-25,07 EQUIPMENT,TECHNOLOGY AND CIO,UK CONNECT LTD,465655,900,154468983
BEIS,Met Office,2022-03-25,11 SERVICES,TECHNOLOGY AND CIO,UK CONNECT LTD,465655,349,154468983
BEIS,Met Office,2022-03-25,11 SERVICES,TECHNOLOGY AND CIO,UK CONNECT LTD,465655,720,154468983
BEIS,Met Office,2022-03-25,11 SERVICES,TECHNOLOGY AND CIO,UK CONNECT LTD,465655,720,154468983
BEIS,Met Office,2022-03-10,11 SERVICES,CHIEF FINANCIAL OFFICER,GB GROUP PLC,465656,488.75,539716218
BEIS,Met Office,2022-03-09,11 SERVICES,CHIEF FINANCIAL OFFICER,EXPONENTIAL-E,465657,1076.36,GB798572653
BEIS,Met Office,2022-03-09,06 ACCOMMODATION,CHIEF FINANCIAL OFFICER,REDACTED PERSONAL DATA,465658,13085,233585557
BEIS,Met Office,2022-03-08,03 STAFF COSTS T&S,SERVICES,CARTUS LTD,465659,2533.2,768489458
BEIS,Met Office,2022-03-09,11 SERVICES,PROGRAMMES,University Of Reading,465661,40557.05,200012659
BEIS,Met Office,2022-03-21,11 SERVICES,SERVICES,SKYGUARD LTD T/A PEOPLESAFE,465662,782,285808854
BEIS,Met Office,2022-03-21,11 SERVICES,SERVICES,SKYGUARD LTD T/A PEOPLESAFE,465663,782,285808854
BEIS,Met Office,2022-03-16,11 SERVICES,MARKETS,IGAD CLIMATE PREDICTION & APPLICATIONS CNTR,465688,16828.2,-
BEIS,Met Office,2022-03-23,06 ACCOMMODATION,CHIEF FINANCIAL OFFICER,JAMES & MARCIA BENJAMIN,465689,520,-
BEIS,Met Office,2022-03-10,11 SERVICES,PROGRAMMES,SCIENCE & TECHNOLOGY FACILITIES COUNCIL,465691,37615,287461957
BEIS,Met Office,2022-03-10,11 SERVICES,PEOPLE,EDENRED I&M (IRS VOUCHERS),465694,24826.8,649 503 520
BEIS,Met Office,2022-03-10,11 SERVICES,CHIEF FINANCIAL OFFICER,ACTIVE PEST MANAGEMENT,465695,86.1,791419116
BEIS,Met Office,2022-03-10,06 ACCOMMODATION,CHIEF FINANCIAL OFFICER,MOUNT CHARLES GROUP LTD,465696,533.67,517116274
BEIS,Met Office,2022-03-10,11 SERVICES,PROGRAMMES,FCDO,465697,148.07,888813560
BEIS,Met Office,2022-03-10,11 SERVICES,MARKETS,BMG RESEARCH LTD,465699,8150,580 6606 32
BEIS,Met Office,2022-03-10,11 SERVICES,MARKETS,BMG RESEARCH LTD,465700,8150,580 6606 32
BEIS,Met Office,2022-03-10,11 SERVICES,MARKETS,BMG RESEARCH LTD,465701,8150,580 6606 32
BEIS,Met Office,2022-03-10,11 SERVICES,MARKETS,YOUMEUS LTD (TRADING AS VERSITI),465702,19770,888501879
BEIS,Met Office,2022-03-11,11 SERVICES,MARKETS,ACCELERATION EMARKETING,465703,4234.25,848940776
BEIS,Met Office,2022-03-16,05 CONSULTANTS,OFFICE OF THE CEO,THE LEGAL DIRECTOR,465704,5140,899 338941
BEIS,Met Office,2022-03-10,11 SERVICES,TECHNOLOGY AND CIO,CLOUDREACH EUROPE LIMITED,465705,5150,978187168
BEIS,Met Office,2022-03-14,11 SERVICES,PROGRAMMES,Hr Wallingford Ltd,465706,-93977,570039752
BEIS,Met Office,2022-03-14,11 SERVICES,PROGRAMMES,Hr Wallingford Ltd,465706,-38523,570039752
BEIS,Met Office,2022-03-10,11 SERVICES,CHIEF FINANCIAL OFFICER,ANVIL MOBILE LIMITED,465707,98.23,981686175
BEIS,Met Office,2022-03-10,11 SERVICES,CHIEF FINANCIAL OFFICER,ANVIL MOBILE LIMITED,465707,89.97,981686175
BEIS,Met Office,2022-03-10,11 SERVICES,CHIEF FINANCIAL OFFICER,ANVIL MOBILE LIMITED,465707,182.75,981686175
BEIS,Met Office,2022-03-14,FIXTURE & FITTINGS,CHIEF FINANCIAL OFFICER,THORLUX LIGHTING,465708,856.36,GB 109 939 440
BEIS,Met Office,2022-03-09,11 SERVICES,MARKETS,BJSS LIMITED,465712,28200,613295452
BEIS,Met Office,2022-03-31,FIXTURE & FITTINGS,CHIEF FINANCIAL OFFICER,FMS INTERIOR SERVICES LTD,465713,-63.39,922056940
BEIS,Met Office,2022-03-31,FIXTURE & FITTINGS,CHIEF FINANCIAL OFFICER,FMS INTERIOR SERVICES LTD,465713,-505.38,922056940
BEIS,Met Office,2022-03-31,FIXTURE & FITTINGS,SERVICES,FMS INTERIOR SERVICES LTD,465713,-87,922056940
BEIS,Met Office,2022-03-31,FIXTURE & FITTINGS,SERVICES,FMS INTERIOR SERVICES LTD,465713,-425,922056940
BEIS,Met Office,2022-03-31,FIXTURE & FITTINGS,SERVICES,FMS INTERIOR SERVICES LTD,465713,-955.71,922056940
BEIS,Met Office,2022-03-31,FIXTURE & FITTINGS,SERVICES,FMS INTERIOR SERVICES LTD,465713,-117.6,922056940
BEIS,Met Office,2022-03-31,FIXTURE & FITTINGS,SERVICES,FMS INTERIOR SERVICES LTD,465713,-36.6,922056940
BEIS,Met Office,2022-03-31,FIXTURE & FITTINGS,SERVICES,FMS INTERIOR SERVICES LTD,465713,-640,922056940
BEIS,Met Office,2022-03-31,FIXTURE & FITTINGS,SERVICES,FMS INTERIOR SERVICES LTD,465713,-201,922056940
BEIS,Met Office,2022-03-31,FIXTURE & FITTINGS,SERVICES,FMS INTERIOR SERVICES LTD,465713,-131.08,922056940
BEIS,Met Office,2022-03-31,FIXTURE & FITTINGS,SERVICES,FMS INTERIOR SERVICES LTD,465713,-164.13,922056940
BEIS,Met Office,2022-03-31,FIXTURE & FITTINGS,SERVICES,FMS INTERIOR SERVICES LTD,465713,-199.33,922056940
BEIS,Met Office,2022-03-31,13 MISCELLANEOUS,SCIENCE,Bangor University,465714,-1000,GB728885674
BEIS,Met Office,2022-03-11,11 SERVICES,CHIEF FINANCIAL OFFICER,GAMMA TELECOM LTD,465719,164.58,823820344
BEIS,Met Office,2022-03-11,11 SERVICES,CHIEF FINANCIAL OFFICER,GAMMA TELECOM LTD,465719,27342.76,823820344
BEIS,Met Office,2022-03-11,06 ACCOMMODATION,CHIEF FINANCIAL OFFICER,CORONA ENERGY LTD,465720,804.18,577704800
BEIS,Met Office,2022-03-10,06 ACCOMMODATION,CHIEF FINANCIAL OFFICER,CORONA ENERGY LTD,465721,13524,577704800
BEIS,Met Office,2022-03-10,11 SERVICES,CHIEF FINANCIAL OFFICER,TELEFONICA O2 UK LIMITED,465722,469.21,778603785
BEIS,Met Office,2022-03-10,11 SERVICES,CHIEF FINANCIAL OFFICER,TELEFONICA O2 UK LIMITED,465722,7369.15,778603785
BEIS,Met Office,2022-03-30,11 SERVICES,CHIEF FINANCIAL OFFICER,SWISSCOM (SCHWEIZ) AG,465743,90.11,-
BEIS,Met Office,2022-03-14,13 MISCELLANEOUS,SERVICES,Royal Meteorological Society,465744,220,-
BEIS,Met Office,2022-03-18,06 ACCOMMODATION,CHIEF FINANCIAL OFFICER,Exeter City Council,465745,140288,142335594
BEIS,Met Office,2022-03-14,06 ACCOMMODATION,CHIEF FINANCIAL OFFICER,Exeter City Council,465755,564.75,142335594
BEIS,Met Office,2022-03-14,06 ACCOMMODATION,CHIEF FINANCIAL OFFICER,BROXTOWE BOROUGH COUNCIL,465756,11976,118033013
BEIS,Met Office,2022-03-10,08 SOFTWARE LICENCES,TECHNOLOGY AND CIO,QUEST SOFTWARE INTERNATIONAL LTD,465757,7396.1,581955404
BEIS,Met Office,2022-03-10,11 SERVICES,CHIEF FINANCIAL OFFICER,EXPONENTIAL-E,465758,975.27,GB798572653
BEIS,Met Office,2022-03-10,11 SERVICES,CHIEF FINANCIAL OFFICER,EXPONENTIAL-E,465759,926.13,GB798572653
BEIS,Met Office,2022-03-14,11 SERVICES,MARKETS,WORLDPAY (UK) LTD,465760,231.04,991280207
BEIS,Met Office,2022-03-10,11 SERVICES,SERVICES,ADAM PHONES LTD,465764,159.6,538877093
BEIS,Met Office,2022-03-10,11 SERVICES,PROGRAMMES,FCDO,465765,-148.07,888813560
BEIS,Met Office,2022-03-10,11 SERVICES,PROGRAMMES,FCDO,465766,148.07,888813560
BEIS,Met Office,2022-03-11,06 ACCOMMODATION,CHIEF FINANCIAL OFFICER,BUSINESS STREAM,465771,7588.43,945850885
BEIS,Met Office,2022-03-23,11 SERVICES,MARKETS,ATHENA INFONOMICS LIMITED,465776,20176,-
BEIS,Met Office,2022-03-15,03 STAFF COSTS T&S,SERVICES,DBS FINANCE RECEIPTS CTS,465777,4015,888805068
BEIS,Met Office,2022-03-15,07 EQUIPMENT,MARKETS,COMPUTACENTER (UK) LTD,465778,6969.36,490334648
BEIS,Met Office,2022-03-15,11 SERVICES,PROGRAMMES,BJSS LIMITED,465779,23600,613295452
BEIS,Met Office,2022-03-14,11 SERVICES,CHIEF FINANCIAL OFFICER,HOGAN LOVELLS INTERNATIONAL LLP,465780,10891.76,GB123371543
BEIS,Met Office,2022-03-10,11 SERVICES,SERVICES,AUTOMATED DOCUMENT SERVICES LTD,465781,9400.2,105353449
BEIS,Met Office,2022-03-31,08 SOFTWARE LICENCES,CHIEF FINANCIAL OFFICER,LOGICALIS UK Limited,465782,-14004.62,864475392
BEIS,Met Office,2022-03-31,08 SOFTWARE LICENCES,CHIEF FINANCIAL OFFICER,LOGICALIS UK Limited,465782,-134271.04,864475392
BEIS,Met Office,2022-03-11,08 SOFTWARE LICENCES,CHIEF FINANCIAL OFFICER,LOGICALIS UK Limited,465783,6898.83,864475392
BEIS,Met Office,2022-03-11,08 SOFTWARE LICENCES,CHIEF FINANCIAL OFFICER,LOGICALIS UK Limited,465783,66143.37,864475392
BEIS,Met Office,2022-03-11,11 SERVICES,MARKETS,ULTRA ELECTRONICS LTD NUCLEAR CONTROL SYSTEMS,465784,37650,123340754
BEIS,Met Office,2022-03-11,11 SERVICES,PEOPLE,BEIS,465785,6872.92,888825550
BEIS,Met Office,2022-03-25,11 SERVICES,PROGRAMMES,FUNDACAO ARTHUR BERNARDES - FUNARBE,465786,-1548527,-
BEIS,Met Office,2022-03-11,06 ACCOMMODATION,CHIEF FINANCIAL OFFICER,South West Water Ltd,465810,3465.36,236873674
BEIS,Met Office,2022-03-11,06 ACCOMMODATION,CHIEF FINANCIAL OFFICER,BUSINESS STREAM,465811,172.41,945850885
BEIS,Met Office,2022-03-11,13 MISCELLANEOUS,CHIEF FINANCIAL OFFICER,CANON UK LTD,465813,80,523797128
BEIS,Met Office,2022-03-17,11 SERVICES,CHIEF FINANCIAL OFFICER,POSTURITE (UK) LTD,465814,50,583565114
BEIS,Met Office,2022-03-14,06 ACCOMMODATION,CHIEF FINANCIAL OFFICER,Cheshire East Borough Council,465834,1172.65,N/A
BEIS,Met Office,2022-03-14,06 ACCOMMODATION,CHIEF FINANCIAL OFFICER,Cheshire East Borough Council,465835,137.23,N/A
BEIS,Met Office,2022-03-14,11 SERVICES,PROGRAMMES,Hr Wallingford Ltd,465836,93977,570039752
BEIS,Met Office,2022-03-14,11 SERVICES,PROGRAMMES,Hr Wallingford Ltd,465836,38523,570039752
BEIS,Met Office,2022-03-14,06 ACCOMMODATION,CHIEF FINANCIAL OFFICER,Severn Trent Water Ltd,465838,747.59,486985565
BEIS,Met Office,2022-03-15,04 CONTRACTORS,PEOPLE,MATRIX SCM LIMITED,465839,155281.23,249 5734 68
BEIS,Met Office,2022-03-15,04 CONTRACTORS,PEOPLE,MATRIX SCM LIMITED,465839,120381.62,249 5734 68
BEIS,Met Office,2022-03-14,11 SERVICES,CHIEF FINANCIAL OFFICER,SURE SOUTH ATLANTIC LTD,465840,785.4,-
BEIS,Met Office,2022-03-14,11 SERVICES,CHIEF FINANCIAL OFFICER,SURE SOUTH ATLANTIC LTD,465841,4837.86,-
BEIS,Met Office,2022-03-17,11 SERVICES,PROGRAMMES,BJSS LIMITED,465842,15637,613295452
BEIS,Met Office,2022-03-14,11 SERVICES,CHIEF FINANCIAL OFFICER,STARK SOFTWARE INTERNATIONAL LTD,465843,8551.24,644372829
BEIS,Met Office,2022-03-14,06 ACCOMMODATION,CHIEF FINANCIAL OFFICER,WOKINGHAM BOROUGH COUNCIL,465844,4291.4,-
BEIS,Met Office,2022-03-14,06 ACCOMMODATION,CHIEF FINANCIAL OFFICER,WOKINGHAM BOROUGH COUNCIL,465845,13972,-
BEIS,Met Office,2022-03-14,06 ACCOMMODATION,CHIEF FINANCIAL OFFICER,WOKINGHAM BOROUGH COUNCIL,465846,1322.35,-
BEIS,Met Office,2022-03-14,11 SERVICES,CHIEF FINANCIAL OFFICER,BT CONFERENCING,465847,112.76,245719348
BEIS,Met Office,2022-03-14,06 ACCOMMODATION,CHIEF FINANCIAL OFFICER,WILTSHIRE COUNCIL,465848,4890.2,-
BEIS,Met Office,2022-03-16,11 SERVICES,PROGRAMMES,Landmark Information Group Ltd,465850,13500,634509735
BEIS,Met Office,2022-03-14,13 MISCELLANEOUS,SCIENCE,JOHN WILEY & SONS LTD,465852,1360,376766987
BEIS,Met Office,2022-03-14,03 STAFF COSTS T&S,SERVICES,AIRPORT CAR RENTALS LTD,465853,320,-
BEIS,Met Office,2022-03-15,11 SERVICES,PROGRAMMES,"CHANNEL FUEL LTD,",465854,5000,GB307738002
BEIS,Met Office,2022-03-14,06 ACCOMMODATION,CHIEF FINANCIAL OFFICER,CITY OF CARLISLE,465855,499,257225166
BEIS,Met Office,2022-03-14,PLANT AND EQUIPMENT,SERVICES,Trinity House,465856,2610.22,243120414
BEIS,Met Office,2022-03-15,11 SERVICES,SERVICES,Trinity House,465857,8275.39,243120414
BEIS,Met Office,2022-03-16,11 SERVICES,MARKETS,MARKET FOCUS CONSULTING LTD,465858,9900,759751578
BEIS,Met Office,2022-03-15,11 SERVICES,CHIEF FINANCIAL OFFICER,JERSEY TELECOM,465859,22.07,NOTVATREG
BEIS,Met Office,2022-03-15,11 SERVICES,CHIEF FINANCIAL OFFICER,JERSEY TELECOM,465859,1262.25,NOTVATREG
BEIS,Met Office,2022-03-14,06 ACCOMMODATION,CHIEF FINANCIAL OFFICER,SAFESTORE LTD,465860,2815.28,722887607
BEIS,Met Office,2022-03-14,06 ACCOMMODATION,CHIEF FINANCIAL OFFICER,VICKERY HOLMAN,465861,4365.62,943875678
BEIS,Met Office,2022-03-14,06 ACCOMMODATION,CHIEF FINANCIAL OFFICER,THORLUX LIGHTING,465862,549.26,GB 109 939 440
BEIS,Met Office,2022-03-14,11 SERVICES,CHIEF FINANCIAL OFFICER,GIBRALTAR NYNEX COMMUNICATIONS LTD,465863,702,NOVAT
BEIS,Met Office,2022-03-14,06 ACCOMMODATION,CHIEF FINANCIAL OFFICER,ST MODWEN VENTURES LTD,465864,15.03,975081008
BEIS,Met Office,2022-03-22,11 SERVICES,MARKETS,PARAGON CUSTOMER COMMUNICATIONS (LONDON) LTD,465865,90000,100130213
BEIS,Met Office,2022-03-15,11 SERVICES,PROGRAMMES,University Of Reading,465867,109434.54,200012659
BEIS,Met Office,2022-03-15,08 SOFTWARE LICENCES,TECHNOLOGY AND CIO,ORACLE CORPORATION UK LTD,465868,13114.39,391313073
BEIS,Met Office,2022-03-15,08 SOFTWARE LICENCES,TECHNOLOGY AND CIO,ORACLE CORPORATION UK LTD,465869,3663.65,391313073
BEIS,Met Office,2022-03-15,08 SOFTWARE LICENCES,TECHNOLOGY AND CIO,ORACLE CORPORATION UK LTD,465870,3611.64,391313073
BEIS,Met Office,2022-03-15,08 SOFTWARE LICENCES,TECHNOLOGY AND CIO,ORACLE CORPORATION UK LTD,465871,1250.44,391313073
BEIS,Met Office,2022-03-15,08 SOFTWARE LICENCES,TECHNOLOGY AND CIO,ORACLE CORPORATION UK LTD,465872,6196.65,391313073
BEIS,Met Office,2022-03-15,08 SOFTWARE LICENCES,TECHNOLOGY AND CIO,ORACLE CORPORATION UK LTD,465873,2805.18,391313073
BEIS,Met Office,2022-03-14,08 SOFTWARE LICENCES,TECHNOLOGY AND CIO,ORACLE CORPORATION UK LTD,465874,4838.51,391313073
BEIS,Met Office,2022-03-14,08 SOFTWARE LICENCES,TECHNOLOGY AND CIO,ORACLE CORPORATION UK LTD,465875,1776.69,391313073
BEIS,Met Office,2022-03-15,08 SOFTWARE LICENCES,TECHNOLOGY AND CIO,ORACLE CORPORATION UK LTD,465876,18685.31,391313073
BEIS,Met Office,2022-03-17,11 SERVICES,PROGRAMMES,HOGAN LOVELLS INTERNATIONAL LLP,465889,17414.12,GB123371543
BEIS,Met Office,2022-03-21,11 SERVICES,PROGRAMMES,HOGAN LOVELLS INTERNATIONAL LLP,465890,250000,GB123371543
BEIS,Met Office,2022-03-21,11 SERVICES,PROGRAMMES,HOGAN LOVELLS INTERNATIONAL LLP,465890,164731.13,GB123371543
BEIS,Met Office,2022-03-21,11 SERVICES,PROGRAMMES,HOGAN LOVELLS INTERNATIONAL LLP,465890,38457.28,GB123371543
BEIS,Met Office,2022-03-17,11 SERVICES,PROGRAMMES,HOGAN LOVELLS INTERNATIONAL LLP,465891,2102.65,GB123371543
BEIS,Met Office,2022-03-17,11 SERVICES,PROGRAMMES,HOGAN LOVELLS INTERNATIONAL LLP,465892,55962.39,GB123371543
BEIS,Met Office,2022-03-15,11 SERVICES,CHIEF FINANCIAL OFFICER,SURE SOUTH ATLANTIC LTD,465893,1244.34,NOVATREG
BEIS,Met Office,2022-03-16,07 EQUIPMENT,SERVICES,COMPUTACENTER (UK) LTD,465894,4248,490334648
BEIS,Met Office,2022-03-15,03 STAFF COSTS T&S,SERVICES,DBS FINANCE RECEIPTS CTS,465895,5681,888805068
BEIS,Met Office,2022-03-15,11 SERVICES,CHIEF FINANCIAL OFFICER,SURE SOUTH ATLANTIC LTD (ST HELENA),465896,1161.67,30005
BEIS,Met Office,2022-03-21,03 STAFF COSTS T&S,CHIEF FINANCIAL OFFICER,ENTERPRISE RENT A CAR UK LTD,465897,1514.41,215557314
BEIS,Met Office,2022-03-17,11 SERVICES,TECHNOLOGY AND CIO,SOFTWAREONE,465898,3900.79,GB 942 5301 43
BEIS,Met Office,2022-03-17,11 SERVICES,TECHNOLOGY AND CIO,SOFTWAREONE,465899,368.7,GB 942 5301 43
BEIS,Met Office,2022-03-28,STOCK,SERVICES,CARTER MANUFACTURING LIMITED,465900,-8122.4,750 0259 62
BEIS,Met Office,2022-03-28,TRADE CREDITORS,SERVICES,CARTER MANUFACTURING LIMITED,465900,11015.36,750 0259 62
BEIS,Met Office,2022-03-28,11 SERVICES,SERVICES,CARTER MANUFACTURING LIMITED,465900,9,750 0259 62
BEIS,Met Office,2022-03-15,03 STAFF COSTS T&S,SERVICES,CHARLIE'S TRAVEL LTD,465901,364.95,783848277
BEIS,Met Office,2022-03-15,03 STAFF COSTS T&S,SERVICES,CHARLIE'S TRAVEL LTD,465902,232.23,783848277
BEIS,Met Office,2022-03-18,11 SERVICES,PROGRAMMES,Imperial College,465915,71127,649926678
BEIS,Met Office,2022-03-15,06 ACCOMMODATION,CHIEF FINANCIAL OFFICER,COMMERCIAL TRANSFER LTD,465916,1254.4,891436990
BEIS,Met Office,2022-03-15,06 ACCOMMODATION,CHIEF FINANCIAL OFFICER,Mitie Landscapes Ltd,465917,6815.38,GB 416 706 654
BEIS,Met Office,2022-03-17,11 SERVICES,TECHNOLOGY AND CIO,BAE SYSTEMS APPLIED INTELLIGENCE LIMITED,465918,4690,GB641407169
BEIS,Met Office,2022-03-15,11 SERVICES,PROGRAMMES,UK CENTRE FOR ECOLOGY & HYDROLOGY (UKCEH),465919,109691.29,336940192
BEIS,Met Office,2022-03-30,11 SERVICES,PROGRAMMES,UK CENTRE FOR ECOLOGY & HYDROLOGY (UKCEH),465920,30835,336940192
BEIS,Met Office,2022-03-15,11 SERVICES,PROGRAMMES,UK CENTRE FOR ECOLOGY & HYDROLOGY (UKCEH),465921,49375,336940192
BEIS,Met Office,2022-03-31,11 SERVICES,PROGRAMMES,SCIENCE & TECHNOLOGY FACILITIES COUNCIL,465922,28472,287461957
BEIS,Met Office,2022-03-17,11 SERVICES,PROGRAMMES,SCIENCE & TECHNOLOGY FACILITIES COUNCIL,465923,99146,287461957
BEIS,Met Office,2022-03-16,08 SOFTWARE LICENCES,TECHNOLOGY AND CIO,PRESENTATION CARTOGRAPHY LTD,465924,1033,-
BEIS,Met Office,2022-03-16,08 SOFTWARE LICENCES,TECHNOLOGY AND CIO,PRESENTATION CARTOGRAPHY LTD,465924,258.25,-
BEIS,Met Office,2022-03-17,CYCLESCHEME,OTHER,EDENRED EB (SHOPPING VOUCHERS),465925,133,649 503 520
BEIS,Met Office,2022-03-16,08 SOFTWARE LICENCES,TECHNOLOGY AND CIO,XEBIALABS LTD,465926,12272,228794369
BEIS,Met Office,2022-03-15,06 ACCOMMODATION,CHIEF FINANCIAL OFFICER,EDF ENERGY CUSTOMERS PLC,465960,7292.14,523041202
BEIS,Met Office,2022-03-18,11 SERVICES,MARKETS,SKATING PANDA LTD,465961,24480,887851360
BEIS,Met Office,2022-03-16,11 SERVICES,MARKETS,OSBORNE CLARKE LLP,465976,3270,GB138187353
BEIS,Met Office,2022-03-30,11 SERVICES,PROGRAMMES,SCIENCE & TECHNOLOGY FACILITIES COUNCIL,465977,99272.36,287461957
BEIS,Met Office,2022-03-15,11 SERVICES,SERVICES,DEEPCRAWL,465978,31222.9,GB 988965031
BEIS,Met Office,2022-03-15,07 EQUIPMENT,MARKETS,COMPUTACENTER (UK) LTD,465979,909.68,490334648
BEIS,Met Office,2022-03-15,07 EQUIPMENT,MARKETS,COMPUTACENTER (UK) LTD,465980,317.41,490334648
BEIS,Met Office,2022-03-15,08 SOFTWARE LICENCES,TECHNOLOGY AND CIO,SOFTWAREONE,465981,34126.27,GB 942 5301 43
BEIS,Met Office,2022-03-18,11 SERVICES,PEOPLE,REDACTED PERSONAL DATA,465982,334,143043312
BEIS,Met Office,2022-03-16,11 SERVICES,PROGRAMMES,University Of Leeds,465983,107001.58,613451470
BEIS,Met Office,2022-03-25,11 SERVICES,PROGRAMMES,University Of Leeds,465984,114537.88,613451470
BEIS,Met Office,2022-03-18,11 SERVICES,PROGRAMMES,University Of Leeds,465985,231361.95,613451470
BEIS,Met Office,2022-03-16,11 SERVICES,SCIENCE,University Of Leeds,465987,19046.88,613451470
BEIS,Met Office,2022-03-17,06 ACCOMMODATION,MARKETS,Suffolk County Council,465990,51.15,104178791
BEIS,Met Office,2022-03-16,12 INTERNATIONAL,MARKETS,ECMWF,465995,7316751,NOTVATREG
BEIS,Met Office,2022-03-16,03 STAFF COSTS T&S,SERVICES,FALKLAND ISLAND COMPANY LTD,465996,304.5,N/A
BEIS,Met Office,2022-03-16,03 STAFF COSTS T&S,SERVICES,CHARLIE'S TRAVEL LTD,465998,193.83,783848277
BEIS,Met Office,2022-03-16,12 INTERNATIONAL,MARKETS,ECMWF,466021,45576,NOTVATREG
BEIS,Met Office,2022-03-17,06 ACCOMMODATION,CHIEF FINANCIAL OFFICER,CORNWALL COUNCIL - KERRIER DIVISION,466028,18213.5,-
BEIS,Met Office,2022-03-18,11 SERVICES,CHIEF FINANCIAL OFFICER,INTEROUTE COMMUNICATIONS LIMITED,466029,7100,832 7071 39
BEIS,Met Office,2022-03-18,08 SOFTWARE LICENCES,CHIEF FINANCIAL OFFICER,TIMEWATCH PLC,466030,13200,461555250
BEIS,Met Office,2022-03-18,08 SOFTWARE LICENCES,CHIEF FINANCIAL OFFICER,TIMEWATCH PLC,466030,151250,461555250
BEIS,Met Office,2022-03-18,08 SOFTWARE LICENCES,CHIEF FINANCIAL OFFICER,TIMEWATCH PLC,466030,2200,461555250
BEIS,Met Office,2022-03-18,08 SOFTWARE LICENCES,CHIEF FINANCIAL OFFICER,TIMEWATCH PLC,466030,9000,461555250
BEIS,Met Office,2022-03-18,08 SOFTWARE LICENCES,CHIEF FINANCIAL OFFICER,TIMEWATCH PLC,466031,2979.17,461555250
BEIS,Met Office,2022-03-17,11 SERVICES,CHIEF FINANCIAL OFFICER,BT GLOBAL SERVICES,466033,31644.02,245719348
BEIS,Met Office,2022-03-17,06 ACCOMMODATION,CHIEF FINANCIAL OFFICER,NORTH WARWICKSHIRE BOROUGH COUNCIL,466034,1497,N/A
BEIS,Met Office,2022-03-17,06 ACCOMMODATION,CHIEF FINANCIAL OFFICER,East Devon District Council,466035,197120,142218990
BEIS,Met Office,2022-03-17,06 ACCOMMODATION,CHIEF FINANCIAL OFFICER,East Devon District Council,466036,4990,142218990
BEIS,Met Office,2022-03-17,06 ACCOMMODATION,CHIEF FINANCIAL OFFICER,WEST LANCASHIRE BOROUGH COUNCIL,466050,4840.3,-
BEIS,Met Office,2022-03-22,STOCK,SERVICES,Environmental Measurements Ltd,466051,0,348513154
BEIS,Met Office,2022-03-22,STOCK,SERVICES,Environmental Measurements Ltd,466051,0,348513154
BEIS,Met Office,2022-03-22,TRADE CREDITORS,SERVICES,Environmental Measurements Ltd,466051,1232,348513154
BEIS,Met Office,2022-03-22,TRADE CREDITORS,SERVICES,Environmental Measurements Ltd,466051,195,348513154
BEIS,Met Office,2022-03-22,11 SERVICES,SERVICES,Environmental Measurements Ltd,466051,30,348513154
BEIS,Met Office,2022-03-17,08 SOFTWARE LICENCES,TECHNOLOGY AND CIO,BOXXE,466052,20204.41,734245248
BEIS,Met Office,2022-03-17,08 SOFTWARE LICENCES,TECHNOLOGY AND CIO,BOXXE,466052,14658.5,734245248
BEIS,Met Office,2022-03-17,11 SERVICES,TECHNOLOGY AND CIO,BOXXE,466053,1500,734245248
BEIS,Met Office,2022-03-17,06 ACCOMMODATION,CHIEF FINANCIAL OFFICER,POWER NI ENERGY LTD,466054,690.56,617518142
BEIS,Met Office,2022-03-18,11 SERVICES,SERVICES,VAISALA LTD,466055,12985,336100011
BEIS,Met Office,2022-03-17,11 SERVICES,PROGRAMMES,University Of Bath,466057,16273,639542122
BEIS,Met Office,2022-03-17,11 SERVICES,CHIEF FINANCIAL OFFICER,Vodafone Limited,466058,464.61,569953277
BEIS,Met Office,2022-03-17,11 SERVICES,CHIEF FINANCIAL OFFICER,Vodafone Limited,466059,10.21,569953277
BEIS,Met Office,2022-03-17,11 SERVICES,PEOPLE,SOURCE COACHING CONSULTANCY,466060,1340,170422048
BEIS,Met Office,2022-03-21,11 SERVICES,TECHNOLOGY AND CIO,BOXXE,466061,484,734245248
BEIS,Met Office,2022-03-17,11 SERVICES,CHIEF FINANCIAL OFFICER,Vodafone Limited,466062,10.21,569953277
BEIS,Met Office,2022-03-17,11 SERVICES,CHIEF FINANCIAL OFFICER,Vodafone Limited,466063,529.81,569953277
BEIS,Met Office,2022-03-17,11 SERVICES,CHIEF FINANCIAL OFFICER,Vodafone Limited,466064,10.21,569953277
BEIS,Met Office,2022-03-17,11 SERVICES,CHIEF FINANCIAL OFFICER,Vodafone Limited,466065,412.23,569953277
BEIS,Met Office,2022-03-17,11 SERVICES,CHIEF FINANCIAL OFFICER,Vodafone Limited,466066,4283.11,569953277
BEIS,Met Office,2022-03-17,11 SERVICES,CHIEF FINANCIAL OFFICER,ALLSTAR BUSINESS SOLUTIONS LTD,466076,2756.97,747880191
BEIS,Met Office,2022-03-22,11 SERVICES,MARKETS,PARAGON CUSTOMER COMMUNICATIONS (LONDON) LTD,466077,-90000,100130213
BEIS,Met Office,2022-03-22,11 SERVICES,MARKETS,PARAGON CUSTOMER COMMUNICATIONS (LONDON) LTD,466078,90000,100130213
BEIS,Met Office,2022-03-31,13 MISCELLANEOUS,SCIENCE,University Of Reading,466079,1000,200012659
BEIS,Met Office,2022-03-21,10 EQUIPMENT MAINTENANCE,SERVICES,YOUNG CALIBRATION LIMITED,466080,1450,673900720
BEIS,Met Office,2022-03-21,11 SERVICES,SERVICES,YOUNG CALIBRATION LIMITED,466080,15,673900720
BEIS,Met Office,2022-03-18,11 SERVICES,CHIEF FINANCIAL OFFICER,Vodafone Ltd,466081,367.93,569953277
BEIS,Met Office,2022-03-18,11 SERVICES,CHIEF FINANCIAL OFFICER,Vodafone Ltd,466082,368.1,569953277
BEIS,Met Office,2022-03-18,11 SERVICES,PROGRAMMES,UK CENTRE FOR ECOLOGY & HYDROLOGY (UKCEH),466083,47919.55,336940192
BEIS,Met Office,2022-03-18,11 SERVICES,CHIEF FINANCIAL OFFICER,Vodafone Ltd,466084,368.1,569953277
BEIS,Met Office,2022-03-18,11 SERVICES,CHIEF FINANCIAL OFFICER,Vodafone Ltd,466085,368,569953277
BEIS,Met Office,2022-03-18,11 SERVICES,PROGRAMMES,University Of Bath,466086,16342.83,639542122
BEIS,Met Office,2022-03-23,12 INTERNATIONAL,MARKETS,MACITECHSY SOLUTIONS,466087,640,-
BEIS,Met Office,2022-03-17,11 SERVICES,PEOPLE,ADJUST,466088,395,-
BEIS,Met Office,2022-03-23,13 MISCELLANEOUS,MARKETS,LHR BUSINESS SUPPORT CENTRE LTD,466089,13.75,927365404
BEIS,Met Office,2022-03-21,04 CONTRACTORS,PEOPLE,MATRIX SCM LIMITED,466090,309507.64,249 5734 68
BEIS,Met Office,2022-03-18,11 SERVICES,PROGRAMMES,Plymouth Marine Laboratory,466091,29870,927105830
BEIS,Met Office,2022-03-17,06 ACCOMMODATION,SERVICES,LINCOLN POLYTHENE / HOBSON HOLDINGS,466092,270,267249279
BEIS,Met Office,2022-03-18,11 SERVICES,PEOPLE,LUMESSE LTD,466094,7800,266385668
BEIS,Met Office,2022-03-18,06 ACCOMMODATION,CHIEF FINANCIAL OFFICER,Belfast International Airport Ltd,466095,243.75,617777601
BEIS,Met Office,2022-03-17,11 SERVICES,MARKETS,ULTRA ELECTRONICS LTD NUCLEAR CONTROL SYSTEMS,466096,14389,123340754
BEIS,Met Office,2022-03-17,11 SERVICES,CHIEF FINANCIAL OFFICER,MAWASEM LTD,466097,58827.52,197694731
BEIS,Met Office,2022-03-21,11 SERVICES,PEOPLE,REDACTED PERSONAL DATA,466153,204,143043312
BEIS,Met Office,2022-03-21,07 EQUIPMENT,SERVICES,CLARKE LANE ENGINEERING LTD,466154,636.7,412068487
BEIS,Met Office,2022-03-21,07 EQUIPMENT,SERVICES,CLARKE LANE ENGINEERING LTD,466155,106.4,412068487
BEIS,Met Office,2022-03-21,07 EQUIPMENT,SERVICES,CLARKE LANE ENGINEERING LTD,466155,147.84,412068487
BEIS,Met Office,2022-03-21,07 EQUIPMENT,SERVICES,CLARKE LANE ENGINEERING LTD,466155,349.12,412068487
BEIS,Met Office,2022-03-21,07 EQUIPMENT,SERVICES,CLARKE LANE ENGINEERING LTD,466155,344.7,412068487
BEIS,Met Office,2022-03-22,11 SERVICES,CHIEF FINANCIAL OFFICER,BT plc,466156,876.22,245719348
BEIS,Met Office,2022-03-23,11 SERVICES,PROGRAMMES,REDACTED PERSONAL DATA,466158,30000,N/A
BEIS,Met Office,2022-03-21,06 ACCOMMODATION,CHIEF FINANCIAL OFFICER,CARDIFF COMMISSIONING LTD,466159,900,484190139
BEIS,Met Office,2022-03-21,08 SOFTWARE LICENCES,CHIEF FINANCIAL OFFICER,CEMAR,466160,135,915042161
BEIS,Met Office,2022-03-30,11 SERVICES,PROGRAMMES,University of Edinburgh,466161,81034.4,592950700
BEIS,Met Office,2022-03-21,11 SERVICES,PROGRAMMES,Ibm United Kingdom Ltd,466162,82649.91,107328000
BEIS,Met Office,2022-03-21,10 EQUIPMENT MAINTENANCE,TECHNOLOGY AND CIO,COMPUTACENTER (UK) LTD,466163,2143.53,490334648
BEIS,Met Office,2022-03-21,11 SERVICES,TECHNOLOGY AND CIO,CLOUDREACH EUROPE LIMITED,466164,3373.01,978187168
BEIS,Met Office,2022-03-21,11 SERVICES,PEOPLE,RESULTS CATALYSTS LTD,466165,2400,811 9181 42
BEIS,Met Office,2022-03-21,13 MISCELLANEOUS,CHIEF FINANCIAL OFFICER,NORSCOTT VENDING SERVICES LTD,466166,85,751402071
BEIS,Met Office,2022-03-21,13 MISCELLANEOUS,SERVICES,Royal Meteorological Society,466167,70.4,-
BEIS,Met Office,2022-03-22,13 MISCELLANEOUS,SERVICES,DBS FINANCE RECEIPTS CTS,466171,49,888805068
BEIS,Met Office,2022-03-22,03 STAFF COSTS T&S,CHIEF FINANCIAL OFFICER,ENTERPRISE RENT A CAR UK LTD,466172,1617.17,215557314
BEIS,Met Office,2022-03-24,11 SERVICES,PEOPLE,BRIGHTCOVE INC,466173,78567,TAX 20-1579162
BEIS,Met Office,2022-03-24,13 MISCELLANEOUS,TECHNOLOGY AND CIO,GARTNER UK LTD,466174,87800,635878884
BEIS,Met Office,2022-03-22,06 ACCOMMODATION,CHIEF FINANCIAL OFFICER,LHR BUSINESS SUPPORT CENTRE LTD,466176,3062.92,927365404
BEIS,Met Office,2022-03-31,11 SERVICES,PROGRAMMES,UKRI,466177,17976,GB287461957
BEIS,Met Office,2022-03-23,11 SERVICES,PROGRAMMES,BAE SYSTEMS APPLIED INTELLIGENCE LIMITED,466180,22592,GB641407169
BEIS,Met Office,2022-03-23,11 SERVICES,PROGRAMMES,BAE SYSTEMS APPLIED INTELLIGENCE LIMITED,466180,3000.5,GB641407169
BEIS,Met Office,2022-03-23,11 SERVICES,PROGRAMMES,BAE SYSTEMS APPLIED INTELLIGENCE LIMITED,466181,7033,GB641407169
BEIS,Met Office,2022-03-23,11 SERVICES,PROGRAMMES,BAE SYSTEMS APPLIED INTELLIGENCE LIMITED,466182,15008,GB641407169
BEIS,Met Office,2022-03-23,11 SERVICES,PROGRAMMES,BAE SYSTEMS APPLIED INTELLIGENCE LIMITED,466183,17445,GB641407169
BEIS,Met Office,2022-03-23,11 SERVICES,PROGRAMMES,BAE SYSTEMS APPLIED INTELLIGENCE LIMITED,466184,11880,GB641407169
BEIS,Met Office,2022-03-23,11 SERVICES,PROGRAMMES,BAE SYSTEMS APPLIED INTELLIGENCE LIMITED,466185,19480.25,GB641407169
BEIS,Met Office,2022-03-23,11 SERVICES,PROGRAMMES,BAE SYSTEMS APPLIED INTELLIGENCE LIMITED,466186,18760,GB641407169
BEIS,Met Office,2022-03-23,11 SERVICES,PROGRAMMES,BAE SYSTEMS APPLIED INTELLIGENCE LIMITED,466187,22823.88,GB641407169
BEIS,Met Office,2022-03-23,11 SERVICES,PROGRAMMES,BAE SYSTEMS APPLIED INTELLIGENCE LIMITED,466188,17822,GB641407169
BEIS,Met Office,2022-03-23,11 SERVICES,PROGRAMMES,BAE SYSTEMS APPLIED INTELLIGENCE LIMITED,466189,7172.1,GB641407169
BEIS,Met Office,2022-03-23,11 SERVICES,PROGRAMMES,BAE SYSTEMS APPLIED INTELLIGENCE LIMITED,466190,23260,GB641407169
BEIS,Met Office,2022-03-23,11 SERVICES,PROGRAMMES,BAE SYSTEMS APPLIED INTELLIGENCE LIMITED,466191,15008,GB641407169
BEIS,Met Office,2022-03-23,11 SERVICES,PROGRAMMES,BAE SYSTEMS APPLIED INTELLIGENCE LIMITED,466192,14070,GB641407169
BEIS,Met Office,2022-03-22,08 SOFTWARE LICENCES,CHIEF FINANCIAL OFFICER,CEMAR,466194,90,915042161
BEIS,Met Office,2022-03-23,11 SERVICES,PROGRAMMES,PERFORMANCE JONES L.L.C.,466195,10000,-
BEIS,Met Office,2022-03-22,06 ACCOMMODATION,CHIEF FINANCIAL OFFICER,REDACTED PERSONAL DATA,466196,4185.25,001874305
BEIS,Met Office,2022-03-30,11 SERVICES,PROGRAMMES,University of Edinburgh,466197,9856.18,592950700
BEIS,Met Office,2022-03-22,11 SERVICES,PROGRAMMES,Esri (Uk) Ltd,466198,717,787430791
BEIS,Met Office,2022-03-25,11 SERVICES,MARKETS,RSM,466221,3950,890965570
BEIS,Met Office,2022-03-24,11 SERVICES,PROGRAMMES,University Of Reading,466223,30000,200012659
BEIS,Met Office,2022-03-23,07 EQUIPMENT,MARKETS,COMPUTACENTER (UK) LTD,466225,1578,490334648
BEIS,Met Office,2022-03-28,11 SERVICES,MARKETS,UNITED KINGDOM RESEARCH AND INNOVATION (UKRI),466226,2870.19,GB287461957
BEIS,Met Office,2022-03-23,11 SERVICES,MARKETS,UNITED KINGDOM RESEARCH AND INNOVATION (UKRI),466227,2870.19,GB287461957
BEIS,Met Office,2022-03-25,11 SERVICES,CHIEF FINANCIAL OFFICER,POSTURITE (UK) LTD,466228,938.65,583565114
BEIS,Met Office,2022-03-23,06 ACCOMMODATION,CHIEF FINANCIAL OFFICER,BUSINESS SUPPORT CENTRE LTD,466229,1027.28,927365208
BEIS,Met Office,2022-03-23,06 ACCOMMODATION,CHIEF FINANCIAL OFFICER,BUSINESS SUPPORT CENTRE LTD,466230,100.09,927365208
BEIS,Met Office,2022-03-30,11 SERVICES,PEOPLE,YOUGOV PLC,466231,8400,991228109
BEIS,Met Office,2022-03-23,11 SERVICES,CHIEF FINANCIAL OFFICER,FSI (FM SOLUTIONS) LTD,466232,1400,166398173
BEIS,Met Office,2022-03-23,06 ACCOMMODATION,CHIEF FINANCIAL OFFICER,Severn Trent Water Ltd,466234,189.47,486985565
BEIS,Met Office,2022-03-23,06 ACCOMMODATION,CHIEF FINANCIAL OFFICER,BUSINESS STREAM,466235,137.48,945850885
BEIS,Met Office,2022-03-31,11 SERVICES,PEOPLE,MIKE KADEN T/A LION LEAFLETS,466236,537,-
BEIS,Met Office,2022-03-23,11 SERVICES,PEOPLE,HOPSCOTCH CONSULTING,466238,31020,102099056
BEIS,Met Office,2022-03-23,07 EQUIPMENT,SERVICES,INDUSTRIAL RUBBER LTD,466239,537.75,711918640
BEIS,Met Office,2022-03-23,07 EQUIPMENT,SERVICES,INDUSTRIAL RUBBER LTD,466239,657.25,711918640
BEIS,Met Office,2022-03-23,07 EQUIPMENT,SERVICES,INDUSTRIAL RUBBER LTD,466239,25,711918640
BEIS,Met Office,2022-03-24,11 SERVICES,PROGRAMMES,University Of Reading,466241,-60000,200012659
BEIS,Met Office,2022-03-24,11 SERVICES,PROGRAMMES,University Of Reading,466242,-60000,200012659
BEIS,Met Office,2022-03-24,TRADE CREDITORS,OTHER,NATWEST COMMERCIAL CARDS DIVISION,466258,136937.71,N/A
BEIS,Met Office,2022-03-24,07 EQUIPMENT,CHIEF FINANCIAL OFFICER,NATWEST COMMERCIAL CARDS DIVISION,466259,9848.32,N/A
BEIS,Met Office,2022-03-25,11 SERVICES,CHIEF FINANCIAL OFFICER,TELEFONICA O2 UK LIMITED,466260,50.14,778603785
BEIS,Met Office,2022-03-23,06 ACCOMMODATION,CHIEF FINANCIAL OFFICER,Valuation Office Agency,466261,2016,888848141
BEIS,Met Office,2022-03-23,06 ACCOMMODATION,CHIEF FINANCIAL OFFICER,Valuation Office Agency,466261,5131,888848141
BEIS,Met Office,2022-03-23,06 ACCOMMODATION,CHIEF FINANCIAL OFFICER,Valuation Office Agency,466261,2016,888848141
BEIS,Met Office,2022-03-24,11 SERVICES,PROGRAMMES,University Of Reading,466263,56401,200012659
BEIS,Met Office,2022-03-24,06 ACCOMMODATION,CHIEF FINANCIAL OFFICER,POD POINT,466264,1590.5,278743455
BEIS,Met Office,2022-03-24,06 ACCOMMODATION,CHIEF FINANCIAL OFFICER,POD POINT,466265,-350,278743455
BEIS,Met Office,2022-03-24,06 ACCOMMODATION,CHIEF FINANCIAL OFFICER,CBRE MANAGED SERVICES LTD,466266,23193.75,853936883
BEIS,Met Office,2022-03-24,06 ACCOMMODATION,CHIEF FINANCIAL OFFICER,CBRE MANAGED SERVICES LTD,466267,27079.82,853936883
BEIS,Met Office,2022-03-23,11 SERVICES,MARKETS,YOUMEUS LTD (TRADING AS VERSITI),466269,20450,888501879
BEIS,Met Office,2022-03-25,11 SERVICES,SERVICES,APPLIED SATELLITE TECHNOLOGY SYSTEMS LTD,466270,7796.39,720108683
BEIS,Met Office,2022-03-25,11 SERVICES,PROGRAMMES,FUNDACAO ARTHUR BERNARDES - FUNARBE,466273,638220.63,-
BEIS,Met Office,2022-03-24,07 EQUIPMENT,SERVICES,University Of Exeter,466274,4633.2,142047795
BEIS,Met Office,2022-03-31,13 MISCELLANEOUS,SCIENCE,University Of Reading,466295,-1000,200012659
BEIS,Met Office,2022-03-24,11 SERVICES,PROGRAMMES,SCIENCE & TECHNOLOGY FACILITIES COUNCIL,466296,17976,287461957
BEIS,Met Office,2022-03-31,11 SERVICES,PROGRAMMES,UKRI,466297,-17976,GB287461957
BEIS,Met Office,2022-03-28,11 SERVICES,SERVICES,APPLIED SATELLITE TECHNOLOGY SYSTEMS LTD,466298,32.6,720108683
BEIS,Met Office,2022-03-28,11 SERVICES,SERVICES,APPLIED SATELLITE TECHNOLOGY SYSTEMS LTD,466299,65.2,720108683
BEIS,Met Office,2022-03-28,11 SERVICES,SERVICES,APPLIED SATELLITE TECHNOLOGY SYSTEMS LTD,466302,65.2,720108683
BEIS,Met Office,2022-03-28,11 SERVICES,SERVICES,APPLIED SATELLITE TECHNOLOGY SYSTEMS LTD,466303,271.01,720108683
BEIS,Met Office,2022-03-28,12 INTERNATIONAL,MARKETS,APPLIED SATELLITE TECHNOLOGY SYSTEMS LTD,466304,32.6,720108683
BEIS,Met Office,2022-03-28,06 ACCOMMODATION,CHIEF FINANCIAL OFFICER,South West Water Ltd,466306,770.02,236873674
BEIS,Met Office,2022-03-28,06 ACCOMMODATION,CHIEF FINANCIAL OFFICER,Shropshire Council,466307,12225.5,-
BEIS,Met Office,2022-03-29,11 SERVICES,CHIEF FINANCIAL OFFICER,ADT FIRE AND SECURITY PLC,466308,123,413633086
BEIS,Met Office,2022-03-28,11 SERVICES,PROGRAMMES,JEREMY BENN ASSOCIATES LIMITED,466309,14500,GB 665300941
BEIS,Met Office,2022-03-29,13 MISCELLANEOUS,OFFICE OF THE CEO,PUBLIC CHAIRS' FORUM,466310,1000,GB 239 6495 62
BEIS,Met Office,2022-03-28,05 CONSULTANTS,PEOPLE,MARKET FOCUS CONSULTING LTD,466311,9900,759751578
BEIS,Met Office,2022-03-28,06 ACCOMMODATION,CHIEF FINANCIAL OFFICER,Wealden District Council,466312,1322.35,210898561
BEIS,Met Office,2022-03-28,06 ACCOMMODATION,CHIEF FINANCIAL OFFICER,South West Water Ltd,466313,48.21,236873674
BEIS,Met Office,2022-03-29,13 MISCELLANEOUS,OFFICE OF THE CEO,ASSOCIATION OF CHIEF EXECUTIVES,466314,650,N/A
BEIS,Met Office,2022-03-24,11 SERVICES,MARKETS,BEIS,466315,378,888825550
BEIS,Met Office,2022-03-25,10 EQUIPMENT MAINTENANCE,TECHNOLOGY AND CIO,ORACLE CORPORATION UK LTD,466318,57053.17,391313073
BEIS,Met Office,2022-03-29,11 SERVICES,PEOPLE,THE STRENGTHS PEOPLE LTD,466319,1000,206868488
BEIS,Met Office,2022-03-29,11 SERVICES,PEOPLE,THE STRENGTHS PEOPLE LTD,466319,925,206868488
BEIS,Met Office,2022-03-29,11 SERVICES,PEOPLE,THE STRENGTHS PEOPLE LTD,466319,67.2,206868488
BEIS,Met Office,2022-03-25,06 ACCOMMODATION,CHIEF FINANCIAL OFFICER,Mitie Landscapes Ltd,466320,2640,GB 416 706 654
BEIS,Met Office,2022-03-28,11 SERVICES,CHIEF FINANCIAL OFFICER,REDACTED PERSONAL DATA,466321,720,-
BEIS,Met Office,2022-03-24,07 EQUIPMENT,TECHNOLOGY AND CIO,COMPUTACENTER (UK) LTD,466322,562,490334648
BEIS,Met Office,2022-03-25,11 SERVICES,SERVICES,COMPUTACENTER (UK) LTD,466323,14250,490334648
BEIS,Met Office,2022-03-25,11 SERVICES,TECHNOLOGY AND CIO,COMPUTACENTER (UK) LTD,466323,9640,490334648
BEIS,Met Office,2022-03-28,11 SERVICES,PROGRAMMES,THE BEHAVIORAL ARCHITECTS,466324,24950,108121459
BEIS,Met Office,2022-03-29,11 SERVICES,CHIEF FINANCIAL OFFICER,British Red Cross Society,466325,764,706926227
BEIS,Met Office,2022-03-28,04 CONTRACTORS,PEOPLE,MATRIX SCM LIMITED,466327,333941.66,249 5734 68
BEIS,Met Office,2022-03-25,06 ACCOMMODATION,CHIEF FINANCIAL OFFICER,UK CENTRE FOR ECOLOGY & HYDROLOGY (UKCEH),466328,2772.65,336940192
BEIS,Met Office,2022-03-25,06 ACCOMMODATION,CHIEF FINANCIAL OFFICER,Mitie Landscapes Ltd,466329,231.2,GB 416 706 654
BEIS,Met Office,2022-03-25,06 ACCOMMODATION,CHIEF FINANCIAL OFFICER,Mitie Landscapes Ltd,466330,189.97,GB 416 706 654
BEIS,Met Office,2022-03-25,06 ACCOMMODATION,CHIEF FINANCIAL OFFICER,Mitie Landscapes Ltd,466331,936,GB 416 706 654
BEIS,Met Office,2022-03-25,06 ACCOMMODATION,CHIEF FINANCIAL OFFICER,Mitie Landscapes Ltd,466332,1029.6,GB 416 706 654
BEIS,Met Office,2022-03-25,06 ACCOMMODATION,CHIEF FINANCIAL OFFICER,Mitie Landscapes Ltd,466333,396,GB 416 706 654
BEIS,Met Office,2022-03-25,11 SERVICES,OFFICE OF THE CEO,PARTNERS FOR LEADERSHIP,466371,5000,402266435
BEIS,Met Office,2022-03-25,11 SERVICES,PEOPLE,PARTNERS FOR LEADERSHIP,466371,5000,402266435
BEIS,Met Office,2022-03-25,11 SERVICES,SERVICES,PARTNERS FOR LEADERSHIP,466371,5000,402266435
BEIS,Met Office,2022-03-28,11 SERVICES,MARKETS,SOCIAL SENSING LTD,466372,4000,-
BEIS,Met Office,2022-03-28,11 SERVICES,MARKETS,SOCIAL SENSING LTD,466373,2758,-
BEIS,Met Office,2022-03-28,06 ACCOMMODATION,CHIEF FINANCIAL OFFICER,OCS Group UK Limited,466374,131912.52,GB238034379
BEIS,Met Office,2022-03-30,INFORMATION TECHNOLOGY,PROGRAMMES,Campbell Scientific Ltd,466375,35661.6,428453933
BEIS,Met Office,2022-03-30,11 SERVICES,PROGRAMMES,Campbell Scientific Ltd,466375,100,428453933
BEIS,Met Office,2022-03-28,03 STAFF COSTS T&S,SERVICES,CHARLIE'S TRAVEL LTD,466378,200,783848277
BEIS,Met Office,2022-03-28,03 STAFF COSTS T&S,SERVICES,CHARLIE'S TRAVEL LTD,466379,323.19,783848277
BEIS,Met Office,2022-03-28,03 STAFF COSTS T&S,SERVICES,CHARLIE'S TRAVEL LTD,466380,228.15,783848277
BEIS,Met Office,2022-03-28,FIXTURE & FITTINGS,CHIEF FINANCIAL OFFICER,XUPER,466382,593,316677090
BEIS,Met Office,2022-03-30,11 SERVICES,CHIEF FINANCIAL OFFICER,BT GLOBAL SERVICES,466383,11584.21,245719348
BEIS,Met Office,2022-03-28,06 ACCOMMODATION,CHIEF FINANCIAL OFFICER,Bedford Borough Council,466384,12974,-
BEIS,Met Office,2022-03-29,06 ACCOMMODATION,CHIEF FINANCIAL OFFICER,Devon County Council,466385,18606.34,142208113
BEIS,Met Office,2022-03-30,11 SERVICES,CHIEF FINANCIAL OFFICER,POSTURITE (UK) LTD,466388,61.99,583565114
BEIS,Met Office,2022-03-29,11 SERVICES,OFFICE OF THE CEO,PHF TRAINING,466389,2850,NOT VAT REG
BEIS,Met Office,2022-03-30,13 MISCELLANEOUS,SCIENCE,University Of Exeter,466390,3000,142047795
BEIS,Met Office,2022-03-28,06 ACCOMMODATION,CHIEF FINANCIAL OFFICER,BIDVEST NOONAN UK LTD,466391,890.6,GB847176988
BEIS,Met Office,2022-03-28,06 ACCOMMODATION,CHIEF FINANCIAL OFFICER,BIDVEST NOONAN UK LTD,466392,395.68,GB847176988
BEIS,Met Office,2022-03-30,11 SERVICES,PEOPLE,ACTIVE LEARNING TEAM LTD,466394,1400,-
BEIS,Met Office,2022-03-28,11 SERVICES,PEOPLE,CIVICA UK LIMITED,466395,7162.66,391171065
BEIS,Met Office,2022-03-29,06 ACCOMMODATION,CHIEF FINANCIAL OFFICER,South West Water Ltd,466415,114.75,236873674
BEIS,Met Office,2022-03-29,11 SERVICES,PROGRAMMES,University Of Leeds,466417,8329.68,613451470
BEIS,Met Office,2022-03-29,11 SERVICES,PROGRAMMES,University Of Reading,466418,37896.71,200012659
BEIS,Met Office,2022-03-29,11 SERVICES,SERVICES,CLOUDREACH EUROPE LIMITED,466419,7300,978187168
BEIS,Met Office,2022-03-29,13 MISCELLANEOUS,CHIEF FINANCIAL OFFICER,EDEN SPRINGS UK LTD,466420,22.39,232160411
BEIS,Met Office,2022-03-29,13 MISCELLANEOUS,CHIEF FINANCIAL OFFICER,EDEN SPRINGS UK LTD,466420,323.94,232160411
BEIS,Met Office,2022-03-29,13 MISCELLANEOUS,CHIEF FINANCIAL OFFICER,EDEN SPRINGS UK LTD,466420,52.4,232160411
BEIS,Met Office,2022-03-31,11 SERVICES,CHIEF FINANCIAL OFFICER,POSTURITE (UK) LTD,466421,54.56,583565114
BEIS,Met Office,2022-03-30,06 ACCOMMODATION,CHIEF FINANCIAL OFFICER,Biffa Waste Services Ltd,466422,1188.31,537911627
BEIS,Met Office,2022-03-29,11 SERVICES,CHIEF FINANCIAL OFFICER,WEBEX COMMUNICATIONS UK LTD,466423,209.92,815974302
BEIS,Met Office,2022-03-30,11 SERVICES,PROGRAMMES,SCIENCE & TECHNOLOGY FACILITIES COUNCIL,466424,16170.08,287461957
BEIS,Met Office,2022-03-31,08 SOFTWARE LICENCES,TECHNOLOGY AND CIO,SPECIALIST COMPUTER CENTRES,466425,156179.98,313651680
BEIS,Met Office,2022-03-31,08 SOFTWARE LICENCES,TECHNOLOGY AND CIO,SPECIALIST COMPUTER CENTRES,466425,79950.84,313651680
BEIS,Met Office,2022-03-31,08 SOFTWARE LICENCES,TECHNOLOGY AND CIO,SPECIALIST COMPUTER CENTRES,466425,143640,313651680
BEIS,Met Office,2022-03-31,08 SOFTWARE LICENCES,TECHNOLOGY AND CIO,SPECIALIST COMPUTER CENTRES,466425,723719.78,313651680
BEIS,Met Office,2022-03-31,11 SERVICES,SERVICES,SPECIALIST COMPUTER CENTRES,466425,72271.2,313651680
BEIS,Met Office,2022-03-30,11 SERVICES,PROGRAMMES,Campbell Scientific Ltd,466426,843.75,428453933
BEIS,Met Office,2022-03-30,07 EQUIPMENT,SERVICES,M C ENGINEERING SERVICES,466427,514.5,813172066
BEIS,Met Office,2022-03-30,07 EQUIPMENT,SERVICES,M C ENGINEERING SERVICES,466427,595.4,813172066
BEIS,Met Office,2022-03-30,07 EQUIPMENT,SERVICES,M C ENGINEERING SERVICES,466427,496.8,813172066
BEIS,Met Office,2022-03-29,06 ACCOMMODATION,MARKETS,DRIVE CREATIVE STUDIO LTD,466428,420,167656860
BEIS,Met Office,2022-03-29,06 ACCOMMODATION,CHIEF FINANCIAL OFFICER,BROWN & CO,466429,500,610538078
BEIS,Met Office,2022-03-29,11 SERVICES,MARKETS,CULVERWELL ASSOCIATES LTD,466430,15000,386 6119 65
BEIS,Met Office,2022-03-31,11 SERVICES,PROGRAMMES,SOCIAL & LOCAL,466449,20000,126 9600 12
BEIS,Met Office,2022-03-31,STOCK,SERVICES,CARTER MANUFACTURING LIMITED,466450,2901.96,750 0259 62
BEIS,Met Office,2022-03-31,STOCK,SERVICES,CARTER MANUFACTURING LIMITED,466452,8122.4,750 0259 62
BEIS,Met Office,2022-03-31,TRADE CREDITORS,SERVICES,CARTER MANUFACTURING LIMITED,466452,-11015.36,750 0259 62
BEIS,Met Office,2022-03-31,11 SERVICES,SERVICES,CARTER MANUFACTURING LIMITED,466452,-9,750 0259 62
BEIS,Met Office,2022-03-30,11 SERVICES,MARKETS,BMG RESEARCH LTD,466490,9100,580 6606 32
BEIS,Met Office,2022-03-31,08 SOFTWARE LICENCES,MARKETS,DOMO INC,466491,17950,-
BEIS,Met Office,2022-03-30,03 STAFF COSTS T&S,CHIEF FINANCIAL OFFICER,RAINBOW CITY TAXIS,466492,14.87,724295039
BEIS,Met Office,2022-03-30,03 STAFF COSTS T&S,SERVICES,CHARLIE'S TRAVEL LTD,466493,340.9,783848277
BEIS,Met Office,2022-03-30,07 EQUIPMENT,TECHNOLOGY AND CIO,PROBRAND LTD,466494,54072.56,580401565
BEIS,Met Office,2022-03-30,11 SERVICES,PROGRAMMES,GAMMA TELECOM LTD,466495,39845.4,823820344
BEIS,Met Office,2022-03-30,10 EQUIPMENT MAINTENANCE,TECHNOLOGY AND CIO,COMPUTACENTER (UK) LTD,466497,105.56,490334648
BEIS,Met Office,2022-03-30,11 SERVICES,TECHNOLOGY AND CIO,AMAZON WEB SERVICES UK LTD,466498,556,170 4318 31
BEIS,Met Office,2022-03-30,11 SERVICES,PROGRAMMES,University Of Reading,466503,33289.34,200012659
BEIS,Met Office,2022-03-31,11 SERVICES,PROGRAMMES,HOGAN LOVELLS INTERNATIONAL LLP,466504,36312.84,GB123371543
BEIS,Met Office,2022-03-30,11 SERVICES,PEOPLE,YOUGOV PLC,466505,600,991228109
BEIS,Met Office,2022-03-31,11 SERVICES,PROGRAMMES,University Of Reading,466506,267118,200012659
BEIS,Met Office,2022-03-30,11 SERVICES,PROGRAMMES,University Of Exeter,466507,29884,142047795
BEIS,Met Office,2022-03-31,10 EQUIPMENT MAINTENANCE,TECHNOLOGY AND CIO,FLOW COMMUNICATIONS (UK) LTD,466510,5391.9,970973088
BEIS,Met Office,2022-03-31,11 SERVICES,SERVICES,MIRRHA LIMITED,466511,500,-
BEIS,Met Office,2022-03-30,10 EQUIPMENT MAINTENANCE,TECHNOLOGY AND CIO,COMPUTACENTER (UK) LTD,466512,3454.87,490334648
BEIS,Met Office,2022-03-30,06 ACCOMMODATION,CHIEF FINANCIAL OFFICER,BROXTOWE BOROUGH COUNCIL,466514,258.18,118033013
BEIS,Met Office,2022-03-31,06 ACCOMMODATION,CHIEF FINANCIAL OFFICER,DACORUM BOROUGH COUNCIL,466515,8483,-
BEIS,Met Office,2022-03-31,06 ACCOMMODATION,CHIEF FINANCIAL OFFICER,Comhairle Nan Eilean Siar,466517,3486,267799485
BEIS,Met Office,2022-03-30,11 SERVICES,PROGRAMMES,MAWASEM LTD,466520,17935,197694731
BEIS,Met Office,2022-03-31,06 ACCOMMODATION,MARKETS,HIGHLANDS & ISLANDS AIRPORTS LTD.,466552,300,945667772
BEIS,Met Office,2022-03-31,06 ACCOMMODATION,MARKETS,HIGHLANDS & ISLANDS AIRPORTS LTD.,466553,300,945667772
BEIS,Met Office,2022-03-31,11 SERVICES,PROGRAMMES,Npl Management Ltd,466555,63000,207523388
BEIS,Met Office,2022-03-31,11 SERVICES,PROGRAMMES,Npl Management Ltd,466556,80000,207523388
BEIS,Met Office,2022-03-31,11 SERVICES,SERVICES,HITACHI CAPITAL VEHICLE SOLUTIONS,466557,15,GB 823 8248 22
BEIS,Met Office,2022-03-31,10 EQUIPMENT MAINTENANCE,SERVICES,R S Aqua Ltd,466559,15331,370059760
BEIS,Met Office,2022-03-31,13 MISCELLANEOUS,SCIENCE,JOHN WILEY & SONS LTD,466560,2090,376766987
BEIS,Met Office,2022-03-31,06 ACCOMMODATION,CHIEF FINANCIAL OFFICER,Devon County Council,466566,11048.37,142208113
BEIS,Met Office,2022-03-31,07 EQUIPMENT,PEOPLE,COMPUTACENTER (UK) LTD,466568,1859.94,490334648
BEIS,Met Office,2022-03-31,07 EQUIPMENT,MARKETS,COMPUTACENTER (UK) LTD,466569,6839.21,490334648
BEIS,Met Office,2022-03-31,07 EQUIPMENT,MARKETS,COMPUTACENTER (UK) LTD,466570,39106.48,490334648
BEIS,Met Office,2022-03-31,13 MISCELLANEOUS,CHIEF FINANCIAL OFFICER,NORSCOTT VENDING SERVICES LTD,466578,85,751402071
BEIS,Met Office,2022-03-31,11 SERVICES,CHIEF FINANCIAL OFFICER,POSTURITE (UK) LTD,466592,81.78,583565114
BEIS,Met Office,2022-03-31,13 MISCELLANEOUS,TECHNOLOGY AND CIO,"BCS, THE CHARTERED INSTITUTE FOR IT",466593,5032,GB18168724
BEIS,Met Office,2022-03-31,11 SERVICES,CHIEF FINANCIAL OFFICER,HOGAN LOVELLS INTERNATIONAL LLP,466595,12447.72,GB123371543
BEIS,Met Office,2022-03-31,08 SOFTWARE LICENCES,TECHNOLOGY AND CIO,IP PERFORMANCE LTD,466597,1300,650541851
BEIS,Met Office,2022-03-31,11 SERVICES,SERVICES,Landmark Information Group Ltd,466607,60000,634509735
BEIS,Met Office,2022-03-31,12 INTERNATIONAL,MARKETS,WORLD METEOROLOGICAL ORGANIZATION,466608,90000,-
BEIS,Met Office,2022-03-31,07 EQUIPMENT,MARKETS,COMPUTACENTER (UK) LTD,466625,6.17,490334648
BEIS,Met Office,2022-03-31,11 SERVICES,PROGRAMMES,GAMMA TELECOM LTD,466628,3875.13,823820344
BEIS,Met Office,2022-03-31,11 SERVICES,PROGRAMMES,GAMMA TELECOM LTD,466628,92.14,823820344
BEIS,Met Office,2022-03-31,11 SERVICES,PROGRAMMES,GAMMA TELECOM LTD,466628,92.14,823820344
